Workbook

Sheet STName
A1: اسم المدرسة
A2: Academic Year: 2024-2025 | I2: Teacher:
B3: 2024-2025 | H3: Moon | J3: A | K3: Section: | N3: Grade 01 | Q3: Class:
B6: اسم الطالب / أقصى علامة
A7: 1 | B7: اسم الطالب 1
A8: 2 | B8: اسم الطالب 2
A9: 3 | B9: اسم الطالب 3
A10: 4 | B10: اسم الطالب 4
A11: 5 | B11: اسم الطالب 5
A12: 6 | B12: اسم الطالب 6
A13: 7 | B13: اسم الطالب 7
A14: 8 | B14: اسم الطالب 8
A15: 9 | B15: اسم الطالب 9
A16: 10 | B16: اسم الطالب 10
A17: 11 | B17: اسم الطالب 11
A18: 12 | B18: اسم الطالب 12
A19: 13 | B19: اسم الطالب 13
A20: 14 | B20: اسم الطالب 14
A21: 15 | B21: اسم الطالب 15
A22: 16 | B22: اسم الطالب 16
A23: 17 | B23: اسم الطالب 17
A24: 18 | B24: اسم الطالب 18
A25: 19 | B25: اسم الطالب 19
A26: 20 | B26: اسم الطالب 20
A27: 21
A28: 22
A29: 23
A30: 24
A31: 25
A32: 26
A33: 27
A34: 28
A35: 29
A36: 30

Sheet Monthly1
A1: =[1]STName!A1 -> International Lessing School
B2: الصــــــــــــــــــــف: | C2: =[1]STName!N3 -> Grade 02 | Q2: العـام الدراســـي: | U2: =[1]STName!B3 -> 2024-2025
B3: الشــــــــــــــــــــعبة: | C3: =[1]STName!J3 -> A | F3: =[1]STName!H3 -> Moon | Q3: عــلامــات شـهر: | U3: Monthly1
A5: الرقم | B5: اسم الطالب | C5: Reading | D5: Grammar | E5: Dictation | F5: Comp + Conv | G5: Poetry | H5: Handwriting | I5: Science | J5: Mathematics | K5: القراءة | L5: القواعد | M5: الإملاء | N5: التعبير والمحادثة | O5: المحفوظات | P5: الخط | Q5: تربية مدنية | R5: Sport | S5: المجموع | T5: المعدل | U5: الترتيب | V5: الفئة | W5: النتيجة | Z5: ترتيب تصاعدي
B6: العلامة القصوى | C6: 20 | D6: 20 | E6: 20 | F6: 20 | G6: 10 | H6: 10 | I6: 20 | J6: 20 | K6: 20 | L6: 20 | M6: 20 | N6: 20 | O6: 10 | P6: 10 | Q6: 10 | R6: 10 | S6: =IF(C6<>0,SUM(C6:R6),"") -> 260 | T6: 20
A7: =IF(B7<>0,[1]STName!A7,"") -> 1 | B7: =[1]STName!B7 -> اسم الطالب 1 | C7: 8 | D7: 16 | E7: 13 | F7: 13 | G7: 2 | H7: 7 | I7: 14 | J7: 20 | K7: 12 | L7: 19 | M7: 19 | N7: 2 | O7: 7 | P7: 6 | Q7: 7 | R7: 7 | S7: =IF(C7<>0,SUM(C7:R7),"") -> 172 | T7: =IF(C7<>0,S7/13,"") -> 13.23076923 | U7: =IF(C7<>0,RANK(T7,$T$7:$T$36),"") -> 14 | V7: =IF(C7<>0,IF(T7>=15,"A",IF(T7>=12,"B",IF(T7>=10,"C",IF(T7>=7.5,"D","E")))),"") -> B | W7: =IF(C7<>0,IF(T7>=10,"ناجح","راسب"),"") -> ناجح | Y7: 1 | Z7: =IF(B7=0,"",TOPTEN($S$7:$S$36,$B$7:$B$36,1,FALSE)) -> اسم الطالب 13 | AA7: =IF(C7=0,"",TOPTEN($S$7:$S$36,$B$7:$B$36,1,TRUE)) -> الأول
A8: =IF(B8<>0,[1]STName!A8,"") -> 2 | B8: =[1]STName!B8 -> اسم الطالب 2 | C8: 12 | D8: 19 | E8: 19 | F8: 15 | G8: 7 | H8: 7 | I8: 2 | J8: 2 | K8: 2 | L8: 5 | M8: 2 | N8: 1 | O8: 7 | P8: 7 | Q8: 7 | R8: 7 | S8: 121 | T8: 9.307692308 | U8: =IF(C8<>0,RANK(T8,$T$7:$T$36),"") -> 19 | V8: =IF(C8<>0,IF(T8>=15,"A",IF(T8>=12,"B",IF(T8>=10,"C",IF(T8>=7.5,"D","E")))),"") -> D | W8: =IF(C8<>0,IF(T8>=10,"ناجح","راسب"),"") -> راسب | Y8: 2 | Z8: =IF(B8=0,"",TOPTEN($S$7:$S$36,$B$7:$B$36,2,FALSE)) -> اسم الطالب 7 | AA8: =IF(C8=0,"",TOPTEN($S$7:$S$36,$B$7:$B$36,2,TRUE)) -> الثاني
A9: =IF(B9<>0,[1]STName!A9,"") -> 3 | B9: =[1]STName!B9 -> اسم الطالب 3 | C9: 14 | D9: 20 | E9: 19 | F9: 15 | G9: 7 | H9: 7 | I9: 20 | J9: 20 | K9: 12 | L9: 20 | M9: 20 | N9: 15 | O9: 7 | P9: 6 | Q9: 7 | R9: 7 | S9: 216 | T9: 16.61538462 | U9: 4 | V9: A | W9: ناجح | Y9: 3 | Z9: =IF(B9=0,"",TOPTEN($S$7:$S$36,$B$7:$B$36,3,FALSE)) -> اسم الطالب 19 | AA9: =IF(C9=0,"",TOPTEN($S$7:$S$36,$B$7:$B$36,3,TRUE)) -> الثاني مكرر
A10: =IF(B10<>0,[1]STName!A10,"") -> 4 | B10: =[1]STName!B10 -> اسم الطالب 4 | C10: 6 | D10: 12 | E10: 11 | F10: 12 | G10: 5 | H10: 5 | I10: 9 | J10: 8 | K10: 9 | L10: 12 | M10: 10 | N10: 6 | O10: 6 | P10: 5 | Q10: 7 | R10: 7 | S10: 130 | T10: 10 | U10: 17 | V10: C | W10: ناجح | Y10: 4 | Z10: =IF(B10=0,"",TOPTEN($S$7:$S$36,$B$7:$B$36,4,FALSE)) -> اسم الطالب 3 | AA10: =IF(C10=0,"",TOPTEN($S$7:$S$36,$B$7:$B$36,4,TRUE)) -> الرابع
A11: =IF(B11<>0,[1]STName!A11,"") -> 5 | B11: =[1]STName!B11 -> اسم الطالب 5 | C11: 12 | D11: 20 | E11: 16 | F11: 14 | G11: 5 | H11: 6 | I11: 19 | J11: 20 | K11: 13 | L11: 17 | M11: 19 | N11: 15 | O11: 7 | P11: 5 | Q11: 7 | R11: 7 | S11: 202 | T11: 15.53846154 | U11: 9 | V11: A | W11: ناجح | Y11: 5 | Z11: =IF(B11=0,"",TOPTEN($S$7:$S$36,$B$7:$B$36,5,FALSE)) -> اسم الطالب 10 | AA11: =IF(C11=0,"",TOPTEN($S$7:$S$36,$B$7:$B$36,5,TRUE)) -> الرابع مكرر
A12: =IF(B12<>0,[1]STName!A12,"") -> 6 | B12: =[1]STName!B12 -> اسم الطالب 6 | C12: 13 | D12: 20 | E12: 19 | F12: 14 | G12: 7 | H12: 7 | I12: 19 | J12: 17 | K12: 12 | L12: 19 | M12: 20 | N12: 14 | O12: 7 | P12: 6 | Q12: 7 | R12: 7 | S12: 208 | T12: 16 | U12: 7 | V12: A | W12: ناجح | Y12: 6 | Z12: =IF(B12=0,"",TOPTEN($S$7:$S$36,$B$7:$B$36,6,FALSE)) -> اسم الطالب 14 | AA12: =IF(C12=0,"",TOPTEN($S$7:$S$36,$B$7:$B$36,6,TRUE)) -> السادس
A13: =IF(B13<>0,[1]STName!A13,"") -> 7 | B13: =[1]STName!B13 -> اسم الطالب 7 | C13: 14 | D13: 20 | E13: 20 | F13: 14 | G13: 7 | H13: 7 | I13: 20 | J13: 20 | K13: 13 | L13: 20 | M13: 20 | N13: 15 | O13: 7 | P13: 7 | Q13: 7 | R13: 7 | S13: 218 | T13: 16.76923077 | U13: 2 | V13: A | W13: ناجح | Y13: 7 | Z13: =IF(B13="","",TOPTEN($S$7:$S$36,$B$7:$B$36,7,FALSE)) -> اسم الطالب 6 | AA13: =IF(C13="","",TOPTEN($S$7:$S$36,$B$7:$B$36,7,TRUE)) -> السابع
A14: =IF(B14<>0,[1]STName!A14,"") -> 8 | B14: =[1]STName!B14 -> اسم الطالب 8 | C14: 8 | D14: 16 | E14: 13 | F14: 13 | G14: 2 | H14: 7 | I14: 14 | J14: 20 | K14: 12 | L14: 19 | M14: 19 | N14: 2 | O14: 7 | P14: 6 | Q14: 7 | R14: 7 | S14: 172 | T14: 13.23076923 | U14: 14 | V14: B | W14: ناجح | Y14: 8 | Z14: =IF(B14="",0,TOPTEN($S$7:$S$36,$B$7:$B$36,8,FALSE)) -> اسم الطالب 18 | AA14: =IF(C14="",0,TOPTEN($S$7:$S$36,$B$7:$B$36,8,TRUE)) -> السابع مكرر
A15: =IF(B15<>0,[1]STName!A15,"") -> 9 | B15: =[1]STName!B15 -> اسم الطالب 9 | C15: 12 | D15: 19 | E15: 19 | F15: 15 | G15: 7 | H15: 7 | I15: 2 | J15: 2 | K15: 2 | L15: 5 | M15: 2 | N15: 1 | O15: 7 | P15: 7 | Q15: 7 | R15: 7 | S15: 121 | T15: 9.307692308 | U15: 19 | V15: D | W15: راسب | Y15: 9 | Z15: =IF(B15=0,"",TOPTEN($S$7:$S$36,$B$7:$B$36,9,FALSE)) -> اسم الطالب 5 | AA15: =IF(C15=0,"",TOPTEN($S$7:$S$36,$B$7:$B$36,9,TRUE)) -> التاسع
A16: =IF(B16<>0,[1]STName!A16,"") -> 10 | B16: =[1]STName!B16 -> اسم الطالب 10 | C16: 14 | D16: 20 | E16: 19 | F16: 15 | G16: 7 | H16: 7 | I16: 20 | J16: 20 | K16: 12 | L16: 20 | M16: 20 | N16: 15 | O16: 7 | P16: 6 | Q16: 7 | R16: 7 | S16: 216 | T16: 16.61538462 | U16: 4 | V16: A | W16: ناجح | Y16: 10 | Z16: =IF(B16=0,"",TOPTEN($S$7:$S$36,$B$7:$B$36,10,FALSE)) -> اسم الطالب 12 | AA16: =IF(C16=0,"",TOPTEN($S$7:$S$36,$B$7:$B$36,10,TRUE)) -> التاسع مكرر
A17: =IF(B17<>0,[1]STName!A17,"") -> 11 | B17: =[1]STName!B17 -> اسم الطالب 11 | C17: 6 | D17: 12 | E17: 11 | F17: 12 | G17: 5 | H17: 5 | I17: 9 | J17: 8 | K17: 9 | L17: 12 | M17: 10 | N17: 6 | O17: 6 | P17: 5 | Q17: 7 | R17: 7 | S17: 130 | T17: 10 | U17: 17 | V17: C | W17: ناجح | Y17: 11 | Z17: =IF(B17=0,"",TOPTEN($S$7:$S$36,$B$7:$B$36,11,FALSE)) -> اسم الطالب 16 | AA17: =IF(C17=0,"",TOPTEN($S$7:$S$36,$B$7:$B$36,11,TRUE)) -> الحادى عشر
A18: =IF(B18<>0,[1]STName!A18,"") -> 12 | B18: =[1]STName!B18 -> اسم الطالب 12 | C18: 12 | D18: 20 | E18: 16 | F18: 14 | G18: 5 | H18: 6 | I18: 19 | J18: 20 | K18: 13 | L18: 17 | M18: 19 | N18: 15 | O18: 7 | P18: 5 | Q18: 7 | R18: 7 | S18: 202 | T18: 15.53846154 | U18: 9 | V18: A | W18: ناجح | Y18: 12 | Z18: =IF(B18=0,"",TOPTEN($S$7:$S$36,$B$7:$B$36,12,FALSE)) -> اسم الطالب 20 | AA18: =IF(C18=0,"",TOPTEN($S$7:$S$36,$B$7:$B$36,12,TRUE)) -> الحادى عشر مكرر
A19: =IF(B19<>0,[1]STName!A19,"") -> 13 | B19: =[1]STName!B19 -> اسم الطالب 13 | C19: 20 | D19: 20 | E19: 14 | F19: 7 | G19: 7 | H19: 20 | I19: 20 | J19: 20 | K19: 13 | L19: 20 | M19: 20 | N19: 15 | O19: 7 | P19: 7 | Q19: 7 | R19: 7 | S19: 224 | T19: 17.23076923 | U19: 1 | V19: A | W19: ناجح | Y19: 13 | Z19: =IF(B19=0,"",TOPTEN($S$7:$S$36,$B$7:$B$36,13,FALSE)) -> اسم الطالب 15 | AA19: =IF(C19=0,"",TOPTEN($S$7:$S$36,$B$7:$B$36,13,TRUE)) -> الثالث عشر
A20: =IF(B20<>0,[1]STName!A20,"") -> 14 | B20: =[1]STName!B20 -> اسم الطالب 14 | C20: 12 | D20: 20 | E20: 20 | F20: 15 | G20: 7 | H20: 6 | I20: 20 | J20: 17 | K20: 12 | L20: 20 | M20: 20 | N20: 15 | O20: 7 | P20: 5 | Q20: 7 | R20: 7 | S20: 210 | T20: 16.15384615 | U20: 6 | V20: A | W20: ناجح | Y20: 14 | Z20: =IF(B20=0,"",TOPTEN($S$7:$S$36,$B$7:$B$36,14,FALSE)) -> اسم الطالب 1 | AA20: =IF(C20=0,"",TOPTEN($S$7:$S$36,$B$7:$B$36,14,TRUE)) -> الرايع عشر
A21: =IF(B21<>0,[1]STName!A21,"") -> 15 | B21: =[1]STName!B21 -> اسم الطالب 15 | C21: 8 | D21: 17 | E21: 18 | F21: 13 | G21: 7 | H21: 6 | I21: 15 | J21: 14 | K21: 10 | L21: 15 | M21: 19 | N21: 8 | O21: 7 | P21: 5 | Q21: 7 | R21: 7 | S21: 176 | T21: 13.53846154 | U21: 13 | V21: B | W21: ناجح | Y21: 15 | Z21: =IF(B21=0,"",TOPTEN($S$7:$S$36,$B$7:$B$36,15,FALSE)) -> اسم الطالب 8 | AA21: =IF(C21=0,"",TOPTEN($S$7:$S$36,$B$7:$B$36,15,TRUE)) -> الرايع عشر مكرر
A22: =IF(B22<>0,[1]STName!A22,"") -> 16 | B22: =[1]STName!B22 -> اسم الطالب 16 | C22: 12 | D22: 16 | E22: 20 | F22: 15 | G22: 4 | H22: 6 | I22: 20 | J22: 14 | K22: 11 | L22: 17 | M22: 20 | N22: 13 | O22: 7 | P22: 6 | Q22: 7 | R22: 7 | S22: 195 | T22: 15 | U22: 11 | V22: A | W22: ناجح | Y22: 16 | Z22: =IF(B22=0,"",TOPTEN($S$7:$S$36,$B$7:$B$36,16,FALSE)) -> اسم الطالب 17 | AA22: =IF(C22=0,"",TOPTEN($S$7:$S$36,$B$7:$B$36,16,TRUE)) -> السادس عشر
A23: =IF(B23<>0,[1]STName!A23,"") -> 17 | B23: =[1]STName!B23 -> اسم الطالب 17 | C23: 9 | D23: 14 | E23: 11 | F23: 12 | G23: 6 | H23: 6 | I23: 11 | J23: 9 | K23: 10 | L23: 19 | M23: 18 | N23: 14 | O23: 7 | P23: 6 | Q23: 7 | R23: 7 | S23: 166 | T23: 12.76923077 | U23: 16 | V23: B | W23: ناجح | Y23: 17 | Z23: =IF(B23=0,"",TOPTEN($S$7:$S$36,$B$7:$B$36,17,FALSE)) -> اسم الطالب 4 | AA23: =IF(C23=0,"",TOPTEN($S$7:$S$36,$B$7:$B$36,17,TRUE)) -> السابع عشر
A24: =IF(B24<>0,[1]STName!A24,"") -> 18 | B24: =[1]STName!B24 -> اسم الطالب 18 | C24: 13 | D24: 20 | E24: 19 | F24: 14 | G24: 7 | H24: 7 | I24: 19 | J24: 17 | K24: 12 | L24: 19 | M24: 20 | N24: 14 | O24: 7 | P24: 6 | Q24: 7 | R24: 7 | S24: 208 | T24: 16 | U24: 7 | V24: A | W24: ناجح | Y24: 18 | Z24: =IF(B24=0,"",TOPTEN($S$7:$S$36,$B$7:$B$36,18,FALSE)) -> اسم الطالب 11 | AA24: =IF(C24=0,"",TOPTEN($S$7:$S$36,$B$7:$B$36,18,TRUE)) -> السابع عشر مكرر
A25: =IF(B25<>0,[1]STName!A25,"") -> 19 | B25: =[1]STName!B25 -> اسم الطالب 19 | C25: 14 | D25: 20 | E25: 20 | F25: 14 | G25: 7 | H25: 7 | I25: 20 | J25: 20 | K25: 13 | L25: 20 | M25: 20 | N25: 15 | O25: 7 | P25: 7 | Q25: 7 | R25: 7 | S25: 218 | T25: 16.76923077 | U25: 2 | V25: A | W25: ناجح | Y25: 19 | Z25: =IF(B25=0,"",TOPTEN($S$7:$S$36,$B$7:$B$36,19,FALSE)) -> اسم الطالب 2 | AA25: =IF(C25=0,"",TOPTEN($S$7:$S$36,$B$7:$B$36,19,TRUE)) -> التاسع عشر
A26: =IF(B26<>0,[1]STName!A26,"") -> 20 | B26: =[1]STName!B26 -> اسم الطالب 20 | C26: 13 | D26: 13 | E26: 18 | F26: 14 | G26: 7 | H26: 6 | I26: 17 | J26: 14 | K26: 12 | L26: 19 | M26: 20 | N26: 15 | O26: 7 | P26: 6 | Q26: 7 | R26: 7 | S26: 195 | T26: 15 | U26: 11 | V26: A | W26: ناجح | Y26: 20 | Z26: =IF(B26=0,"",TOPTEN($S$7:$S$36,$B$7:$B$36,20,FALSE)) -> اسم الطالب 9 | AA26: =IF(C26=0,"",TOPTEN($S$7:$S$36,$B$7:$B$36,20,TRUE)) -> التاسع عشر مكرر
A27: =IF(B27<>0,[1]STName!A27,"") ->  | B27: =[1]STName!B27 -> 0 | Y27: 21 | Z27: =IF(B27=0,"",TOPTEN($S$7:$S$36,$B$7:$B$36,21,FALSE)) ->  | AA27: =IF(C27=0,"",TOPTEN($S$7:$S$36,$B$7:$B$36,21,TRUE)) -> 
A28: =IF(B28<>0,[1]STName!A28,"") ->  | B28: =[1]STName!B28 -> 0 | Y28: 22 | Z28: =IF(B28=0,"",TOPTEN($S$7:$S$36,$B$7:$B$36,22,FALSE)) ->  | AA28: =IF(C28=0,"",TOPTEN($S$7:$S$36,$B$7:$B$36,22,TRUE)) -> 
A29: =IF(B29<>0,[1]STName!A29,"") ->  | B29: =[1]STName!B29 -> 0 | Y29: 23 | Z29: =IF(B29=0,"",TOPTEN($S$7:$S$36,$B$7:$B$36,23,FALSE)) ->  | AA29: =IF(C29=0,"",TOPTEN($S$7:$S$36,$B$7:$B$36,23,TRUE)) -> 
A30: =IF(B30<>0,[1]STName!A30,"") ->  | B30: =[1]STName!B30 -> 0 | Y30: 24 | Z30: =IF(B30=0,"",TOPTEN($S$7:$S$36,$B$7:$B$36,24,FALSE)) ->  | AA30: =IF(C30=0,"",TOPTEN($S$7:$S$36,$B$7:$B$36,24,TRUE)) -> 
A31: =IF(B31<>0,[1]STName!A31,"") ->  | B31: =[1]STName!B31 -> 0 | Y31: 25 | Z31: =IF(B31=0,"",TOPTEN($S$7:$S$36,$B$7:$B$36,25,FALSE)) ->  | AA31: =IF(C31=0,"",TOPTEN($S$7:$S$36,$B$7:$B$36,25,TRUE)) -> 
A32: =IF(B32<>0,[1]STName!A32,"") ->  | B32: =[1]STName!B32 -> 0 | Y32: 26 | Z32: =IF(B32=0,"",TOPTEN($S$7:$S$36,$B$7:$B$36,26,FALSE)) ->  | AA32: =IF(C32=0,"",TOPTEN($S$7:$S$36,$B$7:$B$36,26,TRUE)) -> 
A33: =IF(B33<>0,[1]STName!A33,"") ->  | B33: =[1]STName!B33 -> 0 | Y33: 27 | Z33: =IF(B33=0,"",TOPTEN($S$7:$S$36,$B$7:$B$36,27,FALSE)) ->  | AA33: =IF(C33=0,"",TOPTEN($S$7:$S$36,$B$7:$B$36,27,TRUE)) -> 
A34: =IF(B34<>0,[1]STName!A34,"") ->  | B34: =[1]STName!B34 -> 0 | Y34: 28 | Z34: =IF(B34=0,"",TOPTEN($S$7:$S$36,$B$7:$B$36,28,FALSE)) ->  | AA34: =IF(C34=0,"",TOPTEN($S$7:$S$36,$B$7:$B$36,28,TRUE)) -> 
A35: =IF(B35<>0,[1]STName!A35,"") ->  | B35: =[1]STName!B35 -> 0 | Y35: 29 | Z35: =IF(B35=0,"",TOPTEN($S$7:$S$36,$B$7:$B$36,29,FALSE)) ->  | AA35: =IF(C35=0,"",TOPTEN($S$7:$S$36,$B$7:$B$36,29,TRUE)) -> 
A36: =IF(B36<>0,[1]STName!A36,"") ->  | B36: =[1]STName!B36 -> 0 | Y36: 30 | Z36: =IF(B36=0,"",TOPTEN($S$7:$S$36,$B$7:$B$36,30,FALSE)) ->  | AA36: =IF(C36=0,"",TOPTEN($S$7:$S$36,$B$7:$B$36,30,TRUE)) -> 
B38: أعلى علامة | C38: =MAX(C7:C36) -> 20 | D38: =MAX(D7:D36) -> 20 | E38: 20 | F38: 15 | G38: 7 | H38: 20 | I38: 20 | J38: 20 | K38: 13 | L38: 20 | M38: 20 | N38: 15 | O38: 7 | P38: 7 | Q38: 7 | R38: 7 | S38: 224 | T38: 17.23076923
B39: أدنى علامة | C39: =MIN(C7:C36) -> 6 | D39: =MIN(D7:D36) -> 12 | E39: 11 | F39: 7 | G39: 2 | H39: 5 | I39: 2 | J39: 2 | K39: 2 | L39: 5 | M39: 2 | N39: 1 | O39: 6 | P39: 5 | Q39: 7 | R39: 7 | S39: 121 | T39: 9.307692308
B40: عدد الناجحين | C40: =COUNTIF(C7:C36,">="&C6/2) -> 14 | D40: 20 | E40: 20 | F40: 19 | G40: 17 | H40: 20 | I40: 16 | J40: 15 | K40: 16 | L40: 18 | M40: 18 | N40: 13 | O40: 20 | P40: 20 | Q40: 20 | R40: 20 | S40: =COUNTIF(S7:S36,">="&S6/2) -> 18 | T40: =COUNTIF(T7:T36,">=10") -> 18
B41: عدد الراسبين | C41: =COUNTIF(C7:C37,"<"&C6/2) -> 6 | D41: 0 | E41: 0 | F41: 1 | G41: 3 | H41: 0 | I41: 4 | J41: 5 | K41: 4 | L41: 2 | M41: 2 | N41: 7 | O41: 0 | P41: 0 | Q41: 0 | R41: 0 | S41: =COUNTIF(S7:S37,"<"&S6/2) -> 2 | T41: =COUNTIF(T7:T37,"<10") -> 2

Sheet MidYear
A1: =[1]STName!A1 -> International Lessing School
B2: الصــــــــــــــــــــف: | C2: =[1]STName!N3 -> Grade 02 | Q2: العـام الدراســـي: | U2: =[1]STName!B3 -> 2024-2025
B3: الشــــــــــــــــــــعبة: | C3: =[1]STName!J3 -> A | F3: =[1]STName!H3 -> Moon | Q3: عــلامــات شـهر: | U3: Monthly1
A5: الرقم | B5: اسم الطالب | C5: Reading | D5: Grammar | E5: Dictation | F5: Comp + Conv | G5: Poetry | H5: Handwriting | I5: Science | J5: Mathematics | K5: القراءة | L5: القواعد | M5: الإملاء | N5: التعبير والمحادثة | O5: المحفوظات | P5: الخط | Q5: تربية مدنية | R5: Sport | S5: المجموع | T5: المعدل | U5: الترتيب | V5: الفئة | W5: النتيجة | Z5: ترتيب تصاعدي | AC5: السعي الأول | AD5: نصف السنة | AE5: الفصل الأول | AF5: الترتيب | AI5: ترتيب تصاعدي
B6: العلامة القصوى | C6: 20 | D6: 20 | E6: 20 | F6: 20 | G6: 10 | H6: 10 | I6: 20 | J6: 20 | K6: 20 | L6: 20 | M6: 20 | N6: 20 | O6: 10 | P6: 10 | Q6: 10 | R6: 10 | S6: =IF(C6<>0,SUM(C6:R6),"") -> 260 | T6: 20 | AC6: =Monthly1!S6 -> 260 | AD6: =S6 -> 260 | AE6: =IF((AC6<>"")*AND(AD6<>""),AVERAGE(AC6,AD6),"") -> 260
A7: =IF(B7<>0,[1]STName!A7,"") -> 1 | B7: =[1]STName!B7 -> اسم الطالب 1 | C7: 12 | D7: 20 | E7: 20 | F7: 15 | G7: 7 | H7: 6 | I7: 20 | J7: 17 | K7: 12 | L7: 20 | M7: 20 | N7: 15 | O7: 7 | P7: 5 | Q7: 7 | R7: 7 | S7: =IF(C7<>0,SUM(C7:R7),"") -> 210 | T7: =IF(C7<>0,S7/13,"") -> 16.15384615 | U7: =IF(C7<>0,RANK(T7,$T$7:$T$36),"") -> 5 | V7: =IF(C7<>0,IF(T7>=15,"A",IF(T7>=12,"B",IF(T7>=10,"C",IF(T7>=7.5,"D","E")))),"") -> A | W7: =IF(C7<>0,IF(T7>=10,"ناجح","راسب"),"") -> ناجح | Y7: 1 | Z7: =IF(B7=0,"",TOPTEN($S$7:$S$36,$B$7:$B$36,1,FALSE)) -> اسم الطالب 6 | AA7: =IF(C7=0,"",TOPTEN($S$7:$S$36,$B$7:$B$36,1,TRUE)) -> الأول | AC7: =Monthly1!S7 -> 172 | AD7: 210 | AE7: =IF((AC7<>"")*AND(AD7<>""),AVERAGE(AC7,AD7),"") -> 191 | AF7: =IF(B7<>0,RANK(AE7,$AE$7:$AE$36),"") -> 12 | AH7: 1 | AI7: =IF(B7=0,"",TOPTEN($AE$7:$AE$36,$B$7:$B$36,1,FALSE)) -> اسم الطالب 19 | AJ7: =IF(B7=0,"",TOPTEN($AE$7:$AE$36,$B$7:$B$36,1,TRUE)) -> الأول
A8: =IF(B8<>0,[1]STName!A8,"") -> 2 | B8: =[1]STName!B8 -> اسم الطالب 2 | C8: 8 | D8: 17 | E8: 18 | F8: 13 | G8: 7 | H8: 6 | I8: 15 | J8: 14 | K8: 10 | L8: 15 | M8: 19 | N8: 8 | O8: 7 | P8: 5 | Q8: 7 | R8: 7 | S8: 176 | T8: 13.53846154 | U8: =IF(C8<>0,RANK(T8,$T$7:$T$36),"") -> 12 | V8: =IF(C8<>0,IF(T8>=15,"A",IF(T8>=12,"B",IF(T8>=10,"C",IF(T8>=7.5,"D","E")))),"") -> B | W8: =IF(C8<>0,IF(T8>=10,"ناجح","راسب"),"") -> ناجح | Y8: 2 | Z8: =IF(B8=0,"",TOPTEN($S$7:$S$36,$B$7:$B$36,2,FALSE)) -> اسم الطالب 15 | AA8: =IF(C8=0,"",TOPTEN($S$7:$S$36,$B$7:$B$36,2,TRUE)) -> الثاني | AC8: =Monthly1!S8 -> 121 | AD8: 176 | AE8: 148.5 | AF8: =IF(B8<>0,RANK(AE8,$AE$7:$AE$36),"") -> 17 | AH8: 2 | AI8: =IF(B8=0,"",TOPTEN($AE$7:$AE$36,$B$7:$B$36,2,FALSE)) -> اسم الطالب 10 | AJ8: =IF(B8=0,"",TOPTEN($AE$7:$AE$36,$B$7:$B$36,2,TRUE)) -> الثاني
A9: =IF(B9<>0,[1]STName!A9,"") -> 3 | B9: =[1]STName!B9 -> اسم الطالب 3 | C9: 12 | D9: 16 | E9: 20 | F9: 15 | G9: 4 | H9: 6 | I9: 20 | J9: 14 | K9: 11 | L9: 17 | M9: 20 | N9: 13 | O9: 7 | P9: 6 | Q9: 7 | R9: 7 | S9: 195 | T9: 15 | U9: 9 | V9: A | W9: ناجح | Y9: 3 | Z9: =IF(B9=0,"",TOPTEN($S$7:$S$36,$B$7:$B$36,3,FALSE)) -> اسم الطالب 10 | AA9: =IF(C9=0,"",TOPTEN($S$7:$S$36,$B$7:$B$36,3,TRUE)) -> الثالث | AC9: =Monthly1!S9 -> 216 | AD9: 195 | AE9: 205.5 | AF9: 6 | AH9: 3 | AI9: =IF(B9=0,"",TOPTEN($AE$7:$AE$36,$B$7:$B$36,3,FALSE)) -> اسم الطالب 6 | AJ9: =IF(B9=0,"",TOPTEN($AE$7:$AE$36,$B$7:$B$36,3,TRUE)) -> الثالث
A10: =IF(B10<>0,[1]STName!A10,"") -> 4 | B10: =[1]STName!B10 -> اسم الطالب 4 | C10: 9 | D10: 14 | E10: 11 | F10: 12 | G10: 6 | H10: 6 | I10: 11 | J10: 9 | K10: 10 | L10: 19 | M10: 18 | N10: 14 | O10: 7 | P10: 6 | Q10: 7 | R10: 7 | S10: 166 | T10: 12.76923077 | U10: 15 | V10: B | W10: ناجح | Y10: 4 | Z10: =IF(B10=0,"",TOPTEN($S$7:$S$36,$B$7:$B$36,4,FALSE)) -> اسم الطالب 19 | AA10: =IF(C10=0,"",TOPTEN($S$7:$S$36,$B$7:$B$36,4,TRUE)) -> الثالث مكرر | AC10: =Monthly1!S10 -> 130 | AD10: 166 | AE10: 148 | AF10: 18 | AH10: 4 | AI10: =IF(B10=0,"",TOPTEN($AE$7:$AE$36,$B$7:$B$36,4,FALSE)) -> اسم الطالب 14 | AJ10: =IF(B10=0,"",TOPTEN($AE$7:$AE$36,$B$7:$B$36,4,TRUE)) -> الرابع
A11: =IF(B11<>0,[1]STName!A11,"") -> 5 | B11: =[1]STName!B11 -> اسم الطالب 5 | C11: 13 | D11: 20 | E11: 19 | F11: 14 | G11: 7 | H11: 7 | I11: 19 | J11: 17 | K11: 12 | L11: 19 | M11: 20 | N11: 14 | O11: 7 | P11: 6 | Q11: 7 | R11: 7 | S11: 208 | T11: 16 | U11: 6 | V11: A | W11: ناجح | Y11: 5 | Z11: =IF(B11=0,"",TOPTEN($S$7:$S$36,$B$7:$B$36,5,FALSE)) -> اسم الطالب 1 | AA11: =IF(C11=0,"",TOPTEN($S$7:$S$36,$B$7:$B$36,5,TRUE)) -> الخامس | AC11: =Monthly1!S11 -> 202 | AD11: 208 | AE11: 205 | AF11: 7 | AH11: 5 | AI11: =IF(B11=0,"",TOPTEN($AE$7:$AE$36,$B$7:$B$36,5,FALSE)) -> اسم الطالب 7 | AJ11: =IF(B11=0,"",TOPTEN($AE$7:$AE$36,$B$7:$B$36,5,TRUE)) -> الخامس
A12: =IF(B12<>0,[1]STName!A12,"") -> 6 | B12: =[1]STName!B12 -> اسم الطالب 6 | C12: 14 | D12: 20 | E12: 20 | F12: 14 | G12: 7 | H12: 7 | I12: 20 | J12: 20 | K12: 13 | L12: 20 | M12: 20 | N12: 15 | O12: 7 | P12: 7 | Q12: 8 | R12: 7 | S12: 219 | T12: 16.84615385 | U12: 1 | V12: A | W12: ناجح | Y12: 6 | Z12: =IF(B12=0,"",TOPTEN($S$7:$S$36,$B$7:$B$36,6,FALSE)) -> اسم الطالب 5 | AA12: =IF(C12=0,"",TOPTEN($S$7:$S$36,$B$7:$B$36,6,TRUE)) -> السادس | AC12: =Monthly1!S12 -> 208 | AD12: 219 | AE12: 213.5 | AF12: 3 | AH12: 6 | AI12: =IF(B12=0,"",TOPTEN($AE$7:$AE$36,$B$7:$B$36,6,FALSE)) -> اسم الطالب 3 | AJ12: =IF(B12=0,"",TOPTEN($AE$7:$AE$36,$B$7:$B$36,6,TRUE)) -> السادس
A13: =IF(B13<>0,[1]STName!A13,"") -> 7 | B13: =[1]STName!B13 -> اسم الطالب 7 | C13: 13 | D13: 13 | E13: 18 | F13: 14 | G13: 7 | H13: 6 | I13: 17 | J13: 14 | K13: 12 | L13: 19 | M13: 20 | N13: 15 | O13: 7 | P13: 6 | Q13: 7 | R13: 7 | S13: 195 | T13: 15 | U13: 9 | V13: A | W13: ناجح | Y13: 7 | Z13: =IF(B13="","",TOPTEN($S$7:$S$36,$B$7:$B$36,7,FALSE)) -> اسم الطالب 14 | AA13: =IF(C13="","",TOPTEN($S$7:$S$36,$B$7:$B$36,7,TRUE)) -> السادس مكرر | AC13: =Monthly1!S13 -> 218 | AD13: 195 | AE13: 206.5 | AF13: 5 | AH13: 7 | AI13: =IF(B13=0,"",TOPTEN($AE$7:$AE$36,$B$7:$B$36,7,FALSE)) -> اسم الطالب 5 | AJ13: =IF(B13=0,"",TOPTEN($AE$7:$AE$36,$B$7:$B$36,7,TRUE)) -> السابع
A14: =IF(B14<>0,[1]STName!A14,"") -> 8 | B14: =[1]STName!B14 -> اسم الطالب 8 | C14: 8 | D14: 16 | E14: 13 | F14: 13 | G14: 2 | H14: 7 | I14: 14 | J14: 20 | K14: 12 | L14: 19 | M14: 19 | N14: 2 | O14: 7 | P14: 6 | Q14: 7 | R14: 7 | S14: 172 | T14: 13.23076923 | U14: 13 | V14: B | W14: ناجح | Y14: 8 | Z14: =IF(B14="",0,TOPTEN($S$7:$S$36,$B$7:$B$36,8,FALSE)) -> اسم الطالب 12 | AA14: =IF(C14="",0,TOPTEN($S$7:$S$36,$B$7:$B$36,8,TRUE)) -> الثامن | AC14: =Monthly1!S14 -> 172 | AD14: 172 | AE14: 172 | AF14: 13 | AH14: 8 | AI14: =IF(B14=0,"",TOPTEN($AE$7:$AE$36,$B$7:$B$36,8,FALSE)) -> اسم الطالب 12 | AJ14: =IF(B14=0,"",TOPTEN($AE$7:$AE$36,$B$7:$B$36,8,TRUE)) -> الثامن
A15: =IF(B15<>0,[1]STName!A15,"") -> 9 | B15: =[1]STName!B15 -> اسم الطالب 9 | C15: 12 | D15: 19 | E15: 19 | F15: 15 | G15: 7 | H15: 7 | I15: 2 | J15: 2 | K15: 2 | L15: 5 | M15: 2 | N15: 1 | O15: 7 | P15: 7 | Q15: 7 | R15: 7 | S15: 121 | T15: 9.307692308 | U15: 19 | V15: D | W15: راسب | Y15: 9 | Z15: =IF(B15=0,"",TOPTEN($S$7:$S$36,$B$7:$B$36,9,FALSE)) -> اسم الطالب 3 | AA15: =IF(C15=0,"",TOPTEN($S$7:$S$36,$B$7:$B$36,9,TRUE)) -> التاسع | AC15: =Monthly1!S15 -> 121 | AD15: 121 | AE15: 121 | AF15: 20 | AH15: 9 | AI15: =IF(B15=0,"",TOPTEN($AE$7:$AE$36,$B$7:$B$36,9,FALSE)) -> اسم الطالب 15 | AJ15: =IF(B15=0,"",TOPTEN($AE$7:$AE$36,$B$7:$B$36,9,TRUE)) -> التاسع
A16: =IF(B16<>0,[1]STName!A16,"") -> 10 | B16: =[1]STName!B16 -> اسم الطالب 10 | C16: 14 | D16: 20 | E16: 19 | F16: 15 | G16: 7 | H16: 7 | I16: 20 | J16: 20 | K16: 12 | L16: 20 | M16: 20 | N16: 15 | O16: 7 | P16: 6 | Q16: 7 | R16: 7 | S16: 216 | T16: 16.61538462 | U16: 3 | V16: A | W16: ناجح | Y16: 10 | Z16: =IF(B16=0,"",TOPTEN($S$7:$S$36,$B$7:$B$36,10,FALSE)) -> اسم الطالب 7 | AA16: =IF(C16=0,"",TOPTEN($S$7:$S$36,$B$7:$B$36,10,TRUE)) -> التاسع مكرر | AC16: =Monthly1!S16 -> 216 | AD16: 216 | AE16: 216 | AF16: 2 | AH16: 10 | AI16: =IF(B16=0,"",TOPTEN($AE$7:$AE$36,$B$7:$B$36,10,FALSE)) -> اسم الطالب 13 | AJ16: =IF(B16=0,"",TOPTEN($AE$7:$AE$36,$B$7:$B$36,10,TRUE)) -> العاشر
A17: =IF(B17<>0,[1]STName!A17,"") -> 11 | B17: =[1]STName!B17 -> اسم الطالب 11 | C17: 6 | D17: 12 | E17: 11 | F17: 12 | G17: 5 | H17: 5 | I17: 9 | J17: 8 | K17: 9 | L17: 12 | M17: 10 | N17: 6 | O17: 6 | P17: 5 | Q17: 7 | R17: 7 | S17: 130 | T17: 10 | U17: 17 | V17: C | W17: ناجح | Y17: 11 | Z17: =IF(B17=0,"",TOPTEN($S$7:$S$36,$B$7:$B$36,11,FALSE)) -> اسم الطالب 16 | AA17: =IF(C17=0,"",TOPTEN($S$7:$S$36,$B$7:$B$36,11,TRUE)) -> التاسع مكرر | AC17: =Monthly1!S17 -> 130 | AD17: 130 | AE17: 130 | AF17: 19 | AH17: 11 | AI17: =IF(B17=0,"",TOPTEN($AE$7:$AE$36,$B$7:$B$36,11,FALSE)) -> اسم الطالب 16 | AJ17: =IF(B17=0,"",TOPTEN($AE$7:$AE$36,$B$7:$B$36,11,TRUE)) -> العاشر مكرر
A18: =IF(B18<>0,[1]STName!A18,"") -> 12 | B18: =[1]STName!B18 -> اسم الطالب 12 | C18: 12 | D18: 20 | E18: 16 | F18: 14 | G18: 5 | H18: 6 | I18: 19 | J18: 20 | K18: 13 | L18: 17 | M18: 19 | N18: 15 | O18: 7 | P18: 5 | Q18: 7 | R18: 7 | S18: 202 | T18: 15.53846154 | U18: 8 | V18: A | W18: ناجح | Y18: 12 | Z18: =IF(B18=0,"",TOPTEN($S$7:$S$36,$B$7:$B$36,12,FALSE)) -> اسم الطالب 2 | AA18: =IF(C18=0,"",TOPTEN($S$7:$S$36,$B$7:$B$36,12,TRUE)) -> الثانى عشر | AC18: =Monthly1!S18 -> 202 | AD18: 202 | AE18: 202 | AF18: 8 | AH18: 12 | AI18: =IF(B18=0,"",TOPTEN($AE$7:$AE$36,$B$7:$B$36,12,FALSE)) -> اسم الطالب 1 | AJ18: =IF(B18=0,"",TOPTEN($AE$7:$AE$36,$B$7:$B$36,12,TRUE)) -> الثانى عشر
A19: =IF(B19<>0,[1]STName!A19,"") -> 13 | B19: =[1]STName!B19 -> اسم الطالب 13 | C19: 9 | D19: 14 | E19: 11 | F19: 12 | G19: 6 | H19: 6 | I19: 11 | J19: 9 | K19: 10 | L19: 19 | M19: 18 | N19: 14 | O19: 7 | P19: 6 | Q19: 7 | R19: 7 | S19: 166 | T19: 12.76923077 | U19: 15 | V19: B | W19: ناجح | Y19: 13 | Z19: =IF(B19=0,"",TOPTEN($S$7:$S$36,$B$7:$B$36,13,FALSE)) -> اسم الطالب 8 | AA19: =IF(C19=0,"",TOPTEN($S$7:$S$36,$B$7:$B$36,13,TRUE)) -> الثالث عشر | AC19: =Monthly1!S19 -> 224 | AD19: 166 | AE19: 195 | AF19: 10 | AH19: 13 | AI19: =IF(B19=0,"",TOPTEN($AE$7:$AE$36,$B$7:$B$36,13,FALSE)) -> اسم الطالب 8 | AJ19: =IF(B19=0,"",TOPTEN($AE$7:$AE$36,$B$7:$B$36,13,TRUE)) -> الثالث عشر
A20: =IF(B20<>0,[1]STName!A20,"") -> 14 | B20: =[1]STName!B20 -> اسم الطالب 14 | C20: 13 | D20: 20 | E20: 19 | F20: 14 | G20: 7 | H20: 7 | I20: 19 | J20: 17 | K20: 12 | L20: 19 | M20: 20 | N20: 14 | O20: 7 | P20: 6 | Q20: 7 | R20: 7 | S20: 208 | T20: 16 | U20: 6 | V20: A | W20: ناجح | Y20: 14 | Z20: =IF(B20=0,"",TOPTEN($S$7:$S$36,$B$7:$B$36,14,FALSE)) -> اسم الطالب 17 | AA20: =IF(C20=0,"",TOPTEN($S$7:$S$36,$B$7:$B$36,14,TRUE)) -> الثالث عشر مكرر | AC20: =Monthly1!S20 -> 210 | AD20: 208 | AE20: 209 | AF20: 4 | AH20: 14 | AI20: =IF(B20=0,"",TOPTEN($AE$7:$AE$36,$B$7:$B$36,14,FALSE)) -> اسم الطالب 17 | AJ20: =IF(B20=0,"",TOPTEN($AE$7:$AE$36,$B$7:$B$36,14,TRUE)) -> الرايع عشر
A21: =IF(B21<>0,[1]STName!A21,"") -> 15 | B21: =[1]STName!B21 -> اسم الطالب 15 | C21: 14 | D21: 20 | E21: 20 | F21: 14 | G21: 7 | H21: 7 | I21: 20 | J21: 20 | K21: 13 | L21: 20 | M21: 20 | N21: 15 | O21: 7 | P21: 7 | Q21: 7 | R21: 7 | S21: 218 | T21: 16.76923077 | U21: 2 | V21: A | W21: ناجح | Y21: 15 | Z21: =IF(B21=0,"",TOPTEN($S$7:$S$36,$B$7:$B$36,15,FALSE)) -> اسم الطالب 4 | AA21: =IF(C21=0,"",TOPTEN($S$7:$S$36,$B$7:$B$36,15,TRUE)) -> الخامس عشر | AC21: =Monthly1!S21 -> 176 | AD21: 218 | AE21: 197 | AF21: 9 | AH21: 15 | AI21: =IF(B21=0,"",TOPTEN($AE$7:$AE$36,$B$7:$B$36,15,FALSE)) -> اسم الطالب 18 | AJ21: =IF(B21=0,"",TOPTEN($AE$7:$AE$36,$B$7:$B$36,15,TRUE)) -> الخامس عشر
A22: =IF(B22<>0,[1]STName!A22,"") -> 16 | B22: =[1]STName!B22 -> اسم الطالب 16 | C22: 13 | D22: 13 | E22: 18 | F22: 14 | G22: 7 | H22: 6 | I22: 17 | J22: 14 | K22: 12 | L22: 19 | M22: 20 | N22: 15 | O22: 7 | P22: 6 | Q22: 7 | R22: 7 | S22: 195 | T22: 15 | U22: 9 | V22: A | W22: ناجح | Y22: 16 | Z22: =IF(B22=0,"",TOPTEN($S$7:$S$36,$B$7:$B$36,16,FALSE)) -> اسم الطالب 13 | AA22: =IF(C22=0,"",TOPTEN($S$7:$S$36,$B$7:$B$36,16,TRUE)) -> الخامس عشر مكرر | AC22: =Monthly1!S22 -> 195 | AD22: 195 | AE22: 195 | AF22: 10 | AH22: 16 | AI22: =IF(B22=0,"",TOPTEN($AE$7:$AE$36,$B$7:$B$36,16,FALSE)) -> اسم الطالب 20 | AJ22: =IF(B22=0,"",TOPTEN($AE$7:$AE$36,$B$7:$B$36,16,TRUE)) -> السادس عشر
A23: =IF(B23<>0,[1]STName!A23,"") -> 17 | B23: =[1]STName!B23 -> اسم الطالب 17 | C23: 8 | D23: 16 | E23: 13 | F23: 13 | G23: 2 | H23: 7 | I23: 14 | J23: 20 | K23: 12 | L23: 19 | M23: 19 | N23: 2 | O23: 7 | P23: 6 | Q23: 7 | R23: 7 | S23: 172 | T23: 13.23076923 | U23: 13 | V23: B | W23: ناجح | Y23: 17 | Z23: =IF(B23=0,"",TOPTEN($S$7:$S$36,$B$7:$B$36,17,FALSE)) -> اسم الطالب 11 | AA23: =IF(C23=0,"",TOPTEN($S$7:$S$36,$B$7:$B$36,17,TRUE)) -> السابع عشر | AC23: =Monthly1!S23 -> 166 | AD23: 172 | AE23: 169 | AF23: 14 | AH23: 17 | AI23: =IF(B23=0,"",TOPTEN($AE$7:$AE$36,$B$7:$B$36,17,FALSE)) -> اسم الطالب 2 | AJ23: =IF(B23=0,"",TOPTEN($AE$7:$AE$36,$B$7:$B$36,17,TRUE)) -> السابع عشر
A24: =IF(B24<>0,[1]STName!A24,"") -> 18 | B24: =[1]STName!B24 -> اسم الطالب 18 | C24: 12 | D24: 19 | E24: 19 | F24: 15 | G24: 5 | H24: 7 | I24: 2 | J24: 2 | K24: 2 | L24: 5 | M24: 2 | N24: 1 | O24: 7 | P24: 7 | Q24: 7 | R24: 7 | S24: 119 | T24: 9.153846154 | U24: 20 | V24: D | W24: راسب | Y24: 18 | Z24: =IF(B24=0,"",TOPTEN($S$7:$S$36,$B$7:$B$36,18,FALSE)) -> اسم الطالب 20 | AA24: =IF(C24=0,"",TOPTEN($S$7:$S$36,$B$7:$B$36,18,TRUE)) -> السابع عشر مكرر | AC24: =Monthly1!S24 -> 208 | AD24: 119 | AE24: 163.5 | AF24: 15 | AH24: 18 | AI24: =IF(B24=0,"",TOPTEN($AE$7:$AE$36,$B$7:$B$36,18,FALSE)) -> اسم الطالب 4 | AJ24: =IF(B24=0,"",TOPTEN($AE$7:$AE$36,$B$7:$B$36,18,TRUE)) -> الثامن عشر
A25: =IF(B25<>0,[1]STName!A25,"") -> 19 | B25: =[1]STName!B25 -> اسم الطالب 19 | C25: 14 | D25: 20 | E25: 19 | F25: 15 | G25: 7 | H25: 7 | I25: 20 | J25: 20 | K25: 12 | L25: 20 | M25: 20 | N25: 15 | O25: 7 | P25: 6 | Q25: 7 | R25: 7 | S25: 216 | T25: 16.61538462 | U25: 3 | V25: A | W25: ناجح | Y25: 19 | Z25: =IF(B25=0,"",TOPTEN($S$7:$S$36,$B$7:$B$36,19,FALSE)) -> اسم الطالب 9 | AA25: =IF(C25=0,"",TOPTEN($S$7:$S$36,$B$7:$B$36,19,TRUE)) -> التاسع عشر | AC25: =Monthly1!S25 -> 218 | AD25: 216 | AE25: 217 | AF25: 1 | AH25: 19 | AI25: =IF(B25=0,"",TOPTEN($AE$7:$AE$36,$B$7:$B$36,19,FALSE)) -> اسم الطالب 11 | AJ25: =IF(B25=0,"",TOPTEN($AE$7:$AE$36,$B$7:$B$36,19,TRUE)) -> التاسع عشر
A26: =IF(B26<>0,[1]STName!A26,"") -> 20 | B26: =[1]STName!B26 -> اسم الطالب 20 | C26: 6 | D26: 12 | E26: 11 | F26: 12 | G26: 5 | H26: 5 | I26: 9 | J26: 8 | K26: 9 | L26: 12 | M26: 10 | N26: 6 | O26: 6 | P26: 5 | Q26: 7 | R26: 7 | S26: 130 | T26: 10 | U26: 17 | V26: C | W26: ناجح | Y26: 20 | Z26: =IF(B26=0,"",TOPTEN($S$7:$S$36,$B$7:$B$36,20,FALSE)) -> اسم الطالب 18 | AA26: =IF(C26=0,"",TOPTEN($S$7:$S$36,$B$7:$B$36,20,TRUE)) -> العشرون | AC26: =Monthly1!S26 -> 195 | AD26: 130 | AE26: 162.5 | AF26: 16 | AH26: 20 | AI26: =IF(B26=0,"",TOPTEN($AE$7:$AE$36,$B$7:$B$36,20,FALSE)) -> اسم الطالب 9 | AJ26: =IF(B26=0,"",TOPTEN($AE$7:$AE$36,$B$7:$B$36,20,TRUE)) -> العشرون
A27: =IF(B27<>0,[1]STName!A27,"") ->  | B27: =[1]STName!B27 -> 0 | Y27: 21 | Z27: =IF(B27=0,"",TOPTEN($S$7:$S$36,$B$7:$B$36,21,FALSE)) ->  | AA27: =IF(C27=0,"",TOPTEN($S$7:$S$36,$B$7:$B$36,21,TRUE)) ->  | AC27: =Monthly1!S27 ->  | AH27: 21 | AI27: =IF(B27=0,"",TOPTEN($AE$7:$AE$36,$B$7:$B$36,21,FALSE)) ->  | AJ27: =IF(B27=0,"",TOPTEN($AE$7:$AE$36,$B$7:$B$36,21,TRUE)) -> 
A28: =IF(B28<>0,[1]STName!A28,"") ->  | B28: =[1]STName!B28 -> 0 | Y28: 22 | Z28: =IF(B28=0,"",TOPTEN($S$7:$S$36,$B$7:$B$36,22,FALSE)) ->  | AA28: =IF(C28=0,"",TOPTEN($S$7:$S$36,$B$7:$B$36,22,TRUE)) ->  | AC28: =Monthly1!S28 ->  | AH28: 22 | AI28: =IF(B28=0,"",TOPTEN($AE$7:$AE$36,$B$7:$B$36,22,FALSE)) ->  | AJ28: =IF(B28=0,"",TOPTEN($AE$7:$AE$36,$B$7:$B$36,22,TRUE)) -> 
A29: =IF(B29<>0,[1]STName!A29,"") ->  | B29: =[1]STName!B29 -> 0 | Y29: 23 | Z29: =IF(B29=0,"",TOPTEN($S$7:$S$36,$B$7:$B$36,23,FALSE)) ->  | AA29: =IF(C29=0,"",TOPTEN($S$7:$S$36,$B$7:$B$36,23,TRUE)) ->  | AC29: =Monthly1!S29 ->  | AH29: 23 | AI29: =IF(B29=0,"",TOPTEN($AE$7:$AE$36,$B$7:$B$36,23,FALSE)) ->  | AJ29: =IF(B29=0,"",TOPTEN($AE$7:$AE$36,$B$7:$B$36,23,TRUE)) -> 
A30: =IF(B30<>0,[1]STName!A30,"") ->  | B30: =[1]STName!B30 -> 0 | Y30: 24 | Z30: =IF(B30=0,"",TOPTEN($S$7:$S$36,$B$7:$B$36,24,FALSE)) ->  | AA30: =IF(C30=0,"",TOPTEN($S$7:$S$36,$B$7:$B$36,24,TRUE)) ->  | AC30: =Monthly1!S30 ->  | AH30: 24 | AI30: =IF(B30=0,"",TOPTEN($AE$7:$AE$36,$B$7:$B$36,24,FALSE)) ->  | AJ30: =IF(B30=0,"",TOPTEN($AE$7:$AE$36,$B$7:$B$36,24,TRUE)) -> 
A31: =IF(B31<>0,[1]STName!A31,"") ->  | B31: =[1]STName!B31 -> 0 | Y31: 25 | Z31: =IF(B31=0,"",TOPTEN($S$7:$S$36,$B$7:$B$36,25,FALSE)) ->  | AA31: =IF(C31=0,"",TOPTEN($S$7:$S$36,$B$7:$B$36,25,TRUE)) ->  | AC31: =Monthly1!S31 ->  | AH31: 25 | AI31: =IF(B31=0,"",TOPTEN($AE$7:$AE$36,$B$7:$B$36,25,FALSE)) ->  | AJ31: =IF(B31=0,"",TOPTEN($AE$7:$AE$36,$B$7:$B$36,25,TRUE)) -> 
A32: =IF(B32<>0,[1]STName!A32,"") ->  | B32: =[1]STName!B32 -> 0 | Y32: 26 | Z32: =IF(B32=0,"",TOPTEN($S$7:$S$36,$B$7:$B$36,26,FALSE)) ->  | AA32: =IF(C32=0,"",TOPTEN($S$7:$S$36,$B$7:$B$36,26,TRUE)) ->  | AC32: =Monthly1!S32 ->  | AH32: 26 | AI32: =IF(B32=0,"",TOPTEN($AE$7:$AE$36,$B$7:$B$36,26,FALSE)) ->  | AJ32: =IF(B32=0,"",TOPTEN($AE$7:$AE$36,$B$7:$B$36,26,TRUE)) -> 
A33: =IF(B33<>0,[1]STName!A33,"") ->  | B33: =[1]STName!B33 -> 0 | Y33: 27 | Z33: =IF(B33=0,"",TOPTEN($S$7:$S$36,$B$7:$B$36,27,FALSE)) ->  | AA33: =IF(C33=0,"",TOPTEN($S$7:$S$36,$B$7:$B$36,27,TRUE)) ->  | AC33: =Monthly1!S33 ->  | AH33: 27 | AI33: =IF(B33=0,"",TOPTEN($AE$7:$AE$36,$B$7:$B$36,27,FALSE)) ->  | AJ33: =IF(B33=0,"",TOPTEN($AE$7:$AE$36,$B$7:$B$36,27,TRUE)) -> 
A34: =IF(B34<>0,[1]STName!A34,"") ->  | B34: =[1]STName!B34 -> 0 | Y34: 28 | Z34: =IF(B34=0,"",TOPTEN($S$7:$S$36,$B$7:$B$36,28,FALSE)) ->  | AA34: =IF(C34=0,"",TOPTEN($S$7:$S$36,$B$7:$B$36,28,TRUE)) ->  | AC34: =Monthly1!S34 ->  | AH34: 28 | AI34: =IF(B34=0,"",TOPTEN($AE$7:$AE$36,$B$7:$B$36,28,FALSE)) ->  | AJ34: =IF(B34=0,"",TOPTEN($AE$7:$AE$36,$B$7:$B$36,28,TRUE)) -> 
A35: =IF(B35<>0,[1]STName!A35,"") ->  | B35: =[1]STName!B35 -> 0 | Y35: 29 | Z35: =IF(B35=0,"",TOPTEN($S$7:$S$36,$B$7:$B$36,29,FALSE)) ->  | AA35: =IF(C35=0,"",TOPTEN($S$7:$S$36,$B$7:$B$36,29,TRUE)) ->  | AC35: =Monthly1!S35 ->  | AH35: 29 | AI35: =IF(B35=0,"",TOPTEN($AE$7:$AE$36,$B$7:$B$36,29,FALSE)) ->  | AJ35: =IF(B35=0,"",TOPTEN($AE$7:$AE$36,$B$7:$B$36,29,TRUE)) -> 
A36: =IF(B36<>0,[1]STName!A36,"") ->  | B36: =[1]STName!B36 -> 0 | Y36: 30 | Z36: =IF(B36=0,"",TOPTEN($S$7:$S$36,$B$7:$B$36,30,FALSE)) ->  | AA36: =IF(C36=0,"",TOPTEN($S$7:$S$36,$B$7:$B$36,30,TRUE)) ->  | AC36: =Monthly1!S36 ->  | AH36: 30 | AI36: =IF(B36=0,"",TOPTEN($AE$7:$AE$36,$B$7:$B$36,30,FALSE)) ->  | AJ36: =IF(B36=0,"",TOPTEN($AE$7:$AE$36,$B$7:$B$36,30,TRUE)) -> 
B38: أعلى علامة | C38: =MAX(C7:C36) -> 14 | D38: =MAX(D7:D36) -> 20 | E38: 20 | F38: 15 | G38: 7 | H38: 7 | I38: 20 | J38: 20 | K38: 13 | L38: 20 | M38: 20 | N38: 15 | O38: 7 | P38: 7 | Q38: 8 | R38: 7 | S38: 219 | T38: 16.84615385
B39: أدنى علامة | C39: =MIN(C7:C36) -> 6 | D39: =MIN(D7:D36) -> 12 | E39: 11 | F39: 12 | G39: 2 | H39: 5 | I39: 2 | J39: 2 | K39: 2 | L39: 5 | M39: 2 | N39: 1 | O39: 6 | P39: 5 | Q39: 7 | R39: 7 | S39: 119 | T39: 9.153846154
B40: عدد الناجحين | C40: =COUNTIF(C7:C36,">="&C6/2) -> 13 | D40: 20 | E40: 20 | F40: 20 | G40: 17 | H40: 20 | I40: 16 | J40: 14 | K40: 16 | L40: 18 | M40: 18 | N40: 13 | O40: 20 | P40: 20 | Q40: 20 | R40: 20 | S40: =COUNTIF(S7:S36,">="&S6/2) -> 18 | T40: =COUNTIF(T7:T36,">=10") -> 18
B41: عدد الراسبين | C41: =COUNTIF(C7:C37,"<"&C6/2) -> 7 | D41: 0 | E41: 0 | F41: 0 | G41: 3 | H41: 0 | I41: 4 | J41: 6 | K41: 4 | L41: 2 | M41: 2 | N41: 7 | O41: 0 | P41: 0 | Q41: 0 | R41: 0 | S41: =COUNTIF(S7:S37,"<"&S6/2) -> 2 | T41: =COUNTIF(T7:T37,"<10") -> 2

Sheet Monthly2
A1: =[1]STName!A1 -> International Lessing School
B2: الصــــــــــــــــــــف: | C2: =[1]STName!N3 -> Grade 02 | Q2: العـام الدراســـي: | U2: =[1]STName!B3 -> 2024-2025
B3: الشــــــــــــــــــــعبة: | C3: =[1]STName!J3 -> A | F3: =[1]STName!H3 -> Moon | Q3: عــلامــات شـهر: | U3: Monthly1
A5: الرقم | B5: اسم الطالب | C5: Reading | D5: Grammar | E5: Dictation | F5: Comp + Conv | G5: Poetry | H5: Handwriting | I5: Science | J5: Mathematics | K5: القراءة | L5: القواعد | M5: الإملاء | N5: التعبير والمحادثة | O5: المحفوظات | P5: الخط | Q5: تربية مدنية | R5: Sport | S5: المجموع | T5: المعدل | U5: الترتيب | V5: الفئة | W5: النتيجة | Z5: ترتيب تصاعدي
B6: العلامة القصوى | C6: 20 | D6: 20 | E6: 20 | F6: 20 | G6: 10 | H6: 10 | I6: 20 | J6: 20 | K6: 20 | L6: 20 | M6: 20 | N6: 20 | O6: 10 | P6: 10 | Q6: 10 | R6: 10 | S6: =IF(C6<>0,SUM(C6:R6),"") -> 260 | T6: 20
A7: =IF(B7<>0,[1]STName!A7,"") -> 1 | B7: =[1]STName!B7 -> اسم الطالب 1 | C7: 12 | D7: 20 | E7: 20 | F7: 15 | G7: 7 | H7: 6 | I7: 20 | J7: 17 | K7: 12 | L7: 20 | M7: 20 | N7: 15 | O7: 7 | P7: 5 | Q7: 7 | R7: 7 | S7: =IF(C7<>0,SUM(C7:R7),"") -> 210 | T7: =IF(C7<>0,S7/13,"") -> 16.15384615 | U7: =IF(C7<>0,RANK(T7,$T$7:$T$36),"") -> 4 | V7: =IF(C7<>0,IF(T7>=15,"A",IF(T7>=12,"B",IF(T7>=10,"C",IF(T7>=7.5,"D","E")))),"") -> A | W7: =IF(C7<>0,IF(T7>=10,"ناجح","راسب"),"") -> ناجح | Y7: 1 | Z7: =IF(B7=0,"",TOPTEN($S$7:$S$36,$B$7:$B$36,1,FALSE)) -> اسم الطالب 6 | AA7: =IF(C7=0,"",TOPTEN($S$7:$S$36,$B$7:$B$36,1,TRUE)) -> الأول
A8: =IF(B8<>0,[1]STName!A8,"") -> 2 | B8: =[1]STName!B8 -> اسم الطالب 2 | C8: 8 | D8: 17 | E8: 18 | F8: 13 | G8: 7 | H8: 6 | I8: 15 | J8: 14 | K8: 10 | L8: 15 | M8: 19 | N8: 8 | O8: 7 | P8: 5 | Q8: 7 | R8: 7 | S8: 176 | T8: 13.53846154 | U8: =IF(C8<>0,RANK(T8,$T$7:$T$36),"") -> 13 | V8: =IF(C8<>0,IF(T8>=15,"A",IF(T8>=12,"B",IF(T8>=10,"C",IF(T8>=7.5,"D","E")))),"") -> B | W8: =IF(C8<>0,IF(T8>=10,"ناجح","راسب"),"") -> ناجح | Y8: 2 | Z8: =IF(B8=0,"",TOPTEN($S$7:$S$36,$B$7:$B$36,2,FALSE)) -> اسم الطالب 10 | AA8: =IF(C8=0,"",TOPTEN($S$7:$S$36,$B$7:$B$36,2,TRUE)) -> الثاني
A9: =IF(B9<>0,[1]STName!A9,"") -> 3 | B9: =[1]STName!B9 -> اسم الطالب 3 | C9: 12 | D9: 16 | E9: 20 | F9: 15 | G9: 4 | H9: 6 | I9: 20 | J9: 14 | K9: 11 | L9: 17 | M9: 20 | N9: 13 | O9: 7 | P9: 6 | Q9: 7 | R9: 7 | S9: 195 | T9: 15 | U9: 11 | V9: A | W9: ناجح | Y9: 3 | Z9: =IF(B9=0,"",TOPTEN($S$7:$S$36,$B$7:$B$36,3,FALSE)) -> اسم الطالب 15 | AA9: =IF(C9=0,"",TOPTEN($S$7:$S$36,$B$7:$B$36,3,TRUE)) -> الثالث
A10: =IF(B10<>0,[1]STName!A10,"") -> 4 | B10: =[1]STName!B10 -> اسم الطالب 4 | C10: 9 | D10: 14 | E10: 11 | F10: 12 | G10: 6 | H10: 6 | I10: 11 | J10: 9 | K10: 10 | L10: 19 | M10: 18 | N10: 14 | O10: 7 | P10: 6 | Q10: 7 | R10: 7 | S10: 166 | T10: 12.76923077 | U10: 14 | V10: B | W10: ناجح | Y10: 4 | Z10: =IF(B10=0,"",TOPTEN($S$7:$S$36,$B$7:$B$36,4,FALSE)) -> اسم الطالب 1 | AA10: =IF(C10=0,"",TOPTEN($S$7:$S$36,$B$7:$B$36,4,TRUE)) -> الرابع
A11: =IF(B11<>0,[1]STName!A11,"") -> 5 | B11: =[1]STName!B11 -> اسم الطالب 5 | C11: 13 | D11: 20 | E11: 19 | F11: 14 | G11: 7 | H11: 7 | I11: 19 | J11: 17 | K11: 12 | L11: 19 | M11: 20 | N11: 14 | O11: 7 | P11: 6 | Q11: 7 | R11: 7 | S11: 208 | T11: 16 | U11: 6 | V11: A | W11: ناجح | Y11: 5 | Z11: =IF(B11=0,"",TOPTEN($S$7:$S$36,$B$7:$B$36,5,FALSE)) -> اسم الطالب 9 | AA11: =IF(C11=0,"",TOPTEN($S$7:$S$36,$B$7:$B$36,5,TRUE)) -> الرابع مكرر
A12: =IF(B12<>0,[1]STName!A12,"") -> 6 | B12: =[1]STName!B12 -> اسم الطالب 6 | C12: 14 | D12: 20 | E12: 20 | F12: 14 | G12: 7 | H12: 7 | I12: 20 | J12: 20 | K12: 13 | L12: 20 | M12: 20 | N12: 15 | O12: 7 | P12: 8 | Q12: 8 | R12: 7 | S12: 220 | T12: 16.92307692 | U12: 1 | V12: A | W12: ناجح | Y12: 6 | Z12: =IF(B12=0,"",TOPTEN($S$7:$S$36,$B$7:$B$36,6,FALSE)) -> اسم الطالب 5 | AA12: =IF(C12=0,"",TOPTEN($S$7:$S$36,$B$7:$B$36,6,TRUE)) -> السادس
A13: =IF(B13<>0,[1]STName!A13,"") -> 7 | B13: =[1]STName!B13 -> اسم الطالب 7 | C13: 13 | D13: 13 | E13: 18 | F13: 14 | G13: 7 | H13: 6 | I13: 17 | J13: 14 | K13: 12 | L13: 19 | M13: 20 | N13: 15 | O13: 7 | P13: 6 | Q13: 7 | R13: 7 | S13: 195 | T13: 15 | U13: 11 | V13: A | W13: ناجح | Y13: 7 | Z13: =IF(B13="","",TOPTEN($S$7:$S$36,$B$7:$B$36,7,FALSE)) -> اسم الطالب 14 | AA13: =IF(C13="","",TOPTEN($S$7:$S$36,$B$7:$B$36,7,TRUE)) -> السادس مكرر
A14: =IF(B14<>0,[1]STName!A14,"") -> 8 | B14: =[1]STName!B14 -> اسم الطالب 8 | C14: 9 | D14: 14 | E14: 11 | F14: 12 | G14: 6 | H14: 6 | I14: 11 | J14: 9 | K14: 10 | L14: 19 | M14: 18 | N14: 14 | O14: 7 | P14: 6 | Q14: 7 | R14: 7 | S14: 166 | T14: 12.76923077 | U14: 14 | V14: B | W14: ناجح | Y14: 8 | Z14: =IF(B14="",0,TOPTEN($S$7:$S$36,$B$7:$B$36,8,FALSE)) -> اسم الطالب 19 | AA14: =IF(C14="",0,TOPTEN($S$7:$S$36,$B$7:$B$36,8,TRUE)) -> السادس مكرر
A15: =IF(B15<>0,[1]STName!A15,"") -> 9 | B15: =[1]STName!B15 -> اسم الطالب 9 | C15: 13 | D15: 20 | E15: 19 | F15: 14 | G15: 7 | H15: 7 | I15: 19 | J15: 17 | K15: 12 | L15: 19 | M15: 20 | N15: 16 | O15: 7 | P15: 6 | Q15: 7 | R15: 7 | S15: 210 | T15: 16.15384615 | U15: 4 | V15: A | W15: ناجح | Y15: 9 | Z15: =IF(B15=0,"",TOPTEN($S$7:$S$36,$B$7:$B$36,9,FALSE)) -> اسم الطالب 12 | AA15: =IF(C15=0,"",TOPTEN($S$7:$S$36,$B$7:$B$36,9,TRUE)) -> التاسع
A16: =IF(B16<>0,[1]STName!A16,"") -> 10 | B16: =[1]STName!B16 -> اسم الطالب 10 | C16: 14 | D16: 20 | E16: 20 | F16: 14 | G16: 7 | H16: 7 | I16: 20 | J16: 20 | K16: 13 | L16: 20 | M16: 20 | N16: 15 | O16: 7 | P16: 7 | Q16: 8 | R16: 7 | S16: 219 | T16: 16.84615385 | U16: 2 | V16: A | W16: ناجح | Y16: 10 | Z16: =IF(B16=0,"",TOPTEN($S$7:$S$36,$B$7:$B$36,10,FALSE)) -> اسم الطالب 17 | AA16: =IF(C16=0,"",TOPTEN($S$7:$S$36,$B$7:$B$36,10,TRUE)) -> التاسع مكرر
A17: =IF(B17<>0,[1]STName!A17,"") -> 11 | B17: =[1]STName!B17 -> اسم الطالب 11 | C17: 6 | D17: 12 | E17: 11 | F17: 12 | G17: 5 | H17: 5 | I17: 9 | J17: 8 | K17: 9 | L17: 12 | M17: 10 | N17: 6 | O17: 6 | P17: 5 | Q17: 7 | R17: 7 | S17: 130 | T17: 10 | U17: 19 | V17: C | W17: ناجح | Y17: 11 | Z17: =IF(B17=0,"",TOPTEN($S$7:$S$36,$B$7:$B$36,11,FALSE)) -> اسم الطالب 3 | AA17: =IF(C17=0,"",TOPTEN($S$7:$S$36,$B$7:$B$36,11,TRUE)) -> الحادى عشر
A18: =IF(B18<>0,[1]STName!A18,"") -> 12 | B18: =[1]STName!B18 -> اسم الطالب 12 | C18: 12 | D18: 20 | E18: 16 | F18: 14 | G18: 5 | H18: 6 | I18: 19 | J18: 20 | K18: 13 | L18: 17 | M18: 19 | N18: 15 | O18: 7 | P18: 5 | Q18: 7 | R18: 7 | S18: 202 | T18: 15.53846154 | U18: 9 | V18: A | W18: ناجح | Y18: 12 | Z18: =IF(B18=0,"",TOPTEN($S$7:$S$36,$B$7:$B$36,12,FALSE)) -> اسم الطالب 7 | AA18: =IF(C18=0,"",TOPTEN($S$7:$S$36,$B$7:$B$36,12,TRUE)) -> الحادى عشر مكرر
A19: =IF(B19<>0,[1]STName!A19,"") -> 13 | B19: =[1]STName!B19 -> اسم الطالب 13 | C19: 9 | D19: 14 | E19: 11 | F19: 12 | G19: 6 | H19: 6 | I19: 11 | J19: 9 | K19: 10 | L19: 19 | M19: 18 | N19: 14 | O19: 7 | P19: 6 | Q19: 7 | R19: 7 | S19: 166 | T19: 12.76923077 | U19: 14 | V19: B | W19: ناجح | Y19: 13 | Z19: =IF(B19=0,"",TOPTEN($S$7:$S$36,$B$7:$B$36,13,FALSE)) -> اسم الطالب 2 | AA19: =IF(C19=0,"",TOPTEN($S$7:$S$36,$B$7:$B$36,13,TRUE)) -> الثالث عشر
A20: =IF(B20<>0,[1]STName!A20,"") -> 14 | B20: =[1]STName!B20 -> اسم الطالب 14 | C20: 13 | D20: 20 | E20: 19 | F20: 14 | G20: 7 | H20: 7 | I20: 19 | J20: 17 | K20: 12 | L20: 19 | M20: 20 | N20: 14 | O20: 7 | P20: 6 | Q20: 7 | R20: 7 | S20: 208 | T20: 16 | U20: 6 | V20: A | W20: ناجح | Y20: 14 | Z20: =IF(B20=0,"",TOPTEN($S$7:$S$36,$B$7:$B$36,14,FALSE)) -> اسم الطالب 4 | AA20: =IF(C20=0,"",TOPTEN($S$7:$S$36,$B$7:$B$36,14,TRUE)) -> الرايع عشر
A21: =IF(B21<>0,[1]STName!A21,"") -> 15 | B21: =[1]STName!B21 -> اسم الطالب 15 | C21: 14 | D21: 20 | E21: 20 | F21: 14 | G21: 7 | H21: 7 | I21: 20 | J21: 20 | K21: 13 | L21: 20 | M21: 20 | N21: 15 | O21: 7 | P21: 7 | Q21: 7 | R21: 7 | S21: 218 | T21: 16.76923077 | U21: 3 | V21: A | W21: ناجح | Y21: 15 | Z21: =IF(B21=0,"",TOPTEN($S$7:$S$36,$B$7:$B$36,15,FALSE)) -> اسم الطالب 8 | AA21: =IF(C21=0,"",TOPTEN($S$7:$S$36,$B$7:$B$36,15,TRUE)) -> الرايع عشر مكرر
A22: =IF(B22<>0,[1]STName!A22,"") -> 16 | B22: =[1]STName!B22 -> اسم الطالب 16 | C22: 6 | D22: 12 | E22: 11 | F22: 12 | G22: 5 | H22: 5 | I22: 9 | J22: 8 | K22: 9 | L22: 12 | M22: 10 | N22: 6 | O22: 6 | P22: 5 | Q22: 7 | R22: 7 | S22: 130 | T22: 10 | U22: 19 | V22: C | W22: ناجح | Y22: 16 | Z22: =IF(B22=0,"",TOPTEN($S$7:$S$36,$B$7:$B$36,16,FALSE)) -> اسم الطالب 13 | AA22: =IF(C22=0,"",TOPTEN($S$7:$S$36,$B$7:$B$36,16,TRUE)) -> الرايع عشر مكرر
A23: =IF(B23<>0,[1]STName!A23,"") -> 17 | B23: =[1]STName!B23 -> اسم الطالب 17 | C23: 12 | D23: 20 | E23: 16 | F23: 14 | G23: 5 | H23: 6 | I23: 19 | J23: 20 | K23: 13 | L23: 17 | M23: 19 | N23: 15 | O23: 7 | P23: 5 | Q23: 7 | R23: 7 | S23: 202 | T23: 15.53846154 | U23: 9 | V23: A | W23: ناجح | Y23: 17 | Z23: =IF(B23=0,"",TOPTEN($S$7:$S$36,$B$7:$B$36,17,FALSE)) -> اسم الطالب 18 | AA23: =IF(C23=0,"",TOPTEN($S$7:$S$36,$B$7:$B$36,17,TRUE)) -> الرايع عشر مكرر
A24: =IF(B24<>0,[1]STName!A24,"") -> 18 | B24: =[1]STName!B24 -> اسم الطالب 18 | C24: 9 | D24: 14 | E24: 11 | F24: 12 | G24: 6 | H24: 6 | I24: 11 | J24: 9 | K24: 10 | L24: 19 | M24: 18 | N24: 14 | O24: 7 | P24: 6 | Q24: 7 | R24: 7 | S24: 166 | T24: 12.76923077 | U24: 14 | V24: B | W24: ناجح | Y24: 18 | Z24: =IF(B24=0,"",TOPTEN($S$7:$S$36,$B$7:$B$36,18,FALSE)) -> اسم الطالب 20 | AA24: =IF(C24=0,"",TOPTEN($S$7:$S$36,$B$7:$B$36,18,TRUE)) -> الثامن عشر
A25: =IF(B25<>0,[1]STName!A25,"") -> 19 | B25: =[1]STName!B25 -> اسم الطالب 19 | C25: 13 | D25: 20 | E25: 19 | F25: 14 | G25: 7 | H25: 7 | I25: 19 | J25: 17 | K25: 12 | L25: 19 | M25: 20 | N25: 14 | O25: 7 | P25: 6 | Q25: 7 | R25: 7 | S25: 208 | T25: 16 | U25: 6 | V25: A | W25: ناجح | Y25: 19 | Z25: =IF(B25=0,"",TOPTEN($S$7:$S$36,$B$7:$B$36,19,FALSE)) -> اسم الطالب 11 | AA25: =IF(C25=0,"",TOPTEN($S$7:$S$36,$B$7:$B$36,19,TRUE)) -> التاسع عشر
A26: =IF(B26<>0,[1]STName!A26,"") -> 20 | B26: =[1]STName!B26 -> اسم الطالب 20 | C26: 6 | D26: 12 | E26: 11 | F26: 12 | G26: 5 | H26: 5 | I26: 9 | J26: 8 | K26: 9 | L26: 12 | M26: 10 | N26: 12 | O26: 6 | P26: 5 | Q26: 7 | R26: 7 | S26: 136 | T26: 10.46153846 | U26: 18 | V26: C | W26: ناجح | Y26: 20 | Z26: =IF(B26=0,"",TOPTEN($S$7:$S$36,$B$7:$B$36,20,FALSE)) -> اسم الطالب 16 | AA26: =IF(C26=0,"",TOPTEN($S$7:$S$36,$B$7:$B$36,20,TRUE)) -> التاسع عشر مكرر
A27: =IF(B27<>0,[1]STName!A27,"") ->  | B27: =[1]STName!B27 -> 0 | Y27: 21 | Z27: =IF(B27=0,"",TOPTEN($S$7:$S$36,$B$7:$B$36,21,FALSE)) ->  | AA27: =IF(C27=0,"",TOPTEN($S$7:$S$36,$B$7:$B$36,21,TRUE)) -> 
A28: =IF(B28<>0,[1]STName!A28,"") ->  | B28: =[1]STName!B28 -> 0 | Y28: 22 | Z28: =IF(B28=0,"",TOPTEN($S$7:$S$36,$B$7:$B$36,22,FALSE)) ->  | AA28: =IF(C28=0,"",TOPTEN($S$7:$S$36,$B$7:$B$36,22,TRUE)) -> 
A29: =IF(B29<>0,[1]STName!A29,"") ->  | B29: =[1]STName!B29 -> 0 | Y29: 23 | Z29: =IF(B29=0,"",TOPTEN($S$7:$S$36,$B$7:$B$36,23,FALSE)) ->  | AA29: =IF(C29=0,"",TOPTEN($S$7:$S$36,$B$7:$B$36,23,TRUE)) -> 
A30: =IF(B30<>0,[1]STName!A30,"") ->  | B30: =[1]STName!B30 -> 0 | Y30: 24 | Z30: =IF(B30=0,"",TOPTEN($S$7:$S$36,$B$7:$B$36,24,FALSE)) ->  | AA30: =IF(C30=0,"",TOPTEN($S$7:$S$36,$B$7:$B$36,24,TRUE)) -> 
A31: =IF(B31<>0,[1]STName!A31,"") ->  | B31: =[1]STName!B31 -> 0 | Y31: 25 | Z31: =IF(B31=0,"",TOPTEN($S$7:$S$36,$B$7:$B$36,25,FALSE)) ->  | AA31: =IF(C31=0,"",TOPTEN($S$7:$S$36,$B$7:$B$36,25,TRUE)) -> 
A32: =IF(B32<>0,[1]STName!A32,"") ->  | B32: =[1]STName!B32 -> 0 | Y32: 26 | Z32: =IF(B32=0,"",TOPTEN($S$7:$S$36,$B$7:$B$36,26,FALSE)) ->  | AA32: =IF(C32=0,"",TOPTEN($S$7:$S$36,$B$7:$B$36,26,TRUE)) -> 
A33: =IF(B33<>0,[1]STName!A33,"") ->  | B33: =[1]STName!B33 -> 0 | Y33: 27 | Z33: =IF(B33=0,"",TOPTEN($S$7:$S$36,$B$7:$B$36,27,FALSE)) ->  | AA33: =IF(C33=0,"",TOPTEN($S$7:$S$36,$B$7:$B$36,27,TRUE)) -> 
A34: =IF(B34<>0,[1]STName!A34,"") ->  | B34: =[1]STName!B34 -> 0 | Y34: 28 | Z34: =IF(B34=0,"",TOPTEN($S$7:$S$36,$B$7:$B$36,28,FALSE)) ->  | AA34: =IF(C34=0,"",TOPTEN($S$7:$S$36,$B$7:$B$36,28,TRUE)) -> 
A35: =IF(B35<>0,[1]STName!A35,"") ->  | B35: =[1]STName!B35 -> 0 | Y35: 29 | Z35: =IF(B35=0,"",TOPTEN($S$7:$S$36,$B$7:$B$36,29,FALSE)) ->  | AA35: =IF(C35=0,"",TOPTEN($S$7:$S$36,$B$7:$B$36,29,TRUE)) -> 
A36: =IF(B36<>0,[1]STName!A36,"") ->  | B36: =[1]STName!B36 -> 0 | Y36: 30 | Z36: =IF(B36=0,"",TOPTEN($S$7:$S$36,$B$7:$B$36,30,FALSE)) ->  | AA36: =IF(C36=0,"",TOPTEN($S$7:$S$36,$B$7:$B$36,30,TRUE)) -> 
B38: أعلى علامة | C38: =MAX(C7:C36) -> 14 | D38: =MAX(D7:D36) -> 20 | E38: 20 | F38: 15 | G38: 7 | H38: 7 | I38: 20 | J38: 20 | K38: 13 | L38: 20 | M38: 20 | N38: 16 | O38: 7 | P38: 8 | Q38: 8 | R38: 7 | S38: 220 | T38: 16.92307692
B39: أدنى علامة | C39: =MIN(C7:C36) -> 6 | D39: =MIN(D7:D36) -> 12 | E39: 11 | F39: 12 | G39: 4 | H39: 5 | I39: 9 | J39: 8 | K39: 9 | L39: 12 | M39: 10 | N39: 6 | O39: 6 | P39: 5 | Q39: 7 | R39: 7 | S39: 130 | T39: 10
B40: عدد الناجحين | C40: =COUNTIF(C7:C36,">="&C6/2) -> 12 | D40: 20 | E40: 20 | F40: 20 | G40: 19 | H40: 20 | I40: 17 | J40: 13 | K40: 17 | L40: 20 | M40: 20 | N40: 17 | O40: 20 | P40: 20 | Q40: 20 | R40: 20 | S40: =COUNTIF(S7:S36,">="&S6/2) -> 20 | T40: =COUNTIF(T7:T36,">=10") -> 20
B41: عدد الراسبين | C41: =COUNTIF(C7:C37,"<"&C6/2) -> 8 | D41: 0 | E41: 0 | F41: 0 | G41: 1 | H41: 0 | I41: 3 | J41: 7 | K41: 3 | L41: 0 | M41: 0 | N41: 3 | O41: 0 | P41: 0 | Q41: 0 | R41: 0 | S41: =COUNTIF(S7:S37,"<"&S6/2) -> 0 | T41: =COUNTIF(T7:T37,"<10") -> 0

Sheet FinalYear
A1: =[1]STName!A1 -> International Lessing School
B2: الصــــــــــــــــــــف: | C2: =[1]STName!N3 -> Grade 02 | Q2: العـام الدراســـي: | U2: =[1]STName!B3 -> 2024-2025
B3: الشــــــــــــــــــــعبة: | C3: =[1]STName!J3 -> A | F3: =[1]STName!H3 -> Moon | Q3: عــلامــات شـهر: | U3: Monthly1
A5: الرقم | B5: اسم الطالب | C5: Reading | D5: Grammar | E5: Dictation | F5: Comp + Conv | G5: Poetry | H5: Handwriting | I5: Science | J5: Mathematics | K5: القراءة | L5: القواعد | M5: الإملاء | N5: التعبير والمحادثة | O5: المحفوظات | P5: الخط | Q5: تربية مدنية | R5: Sport | S5: المجموع | T5: المعدل | U5: الترتيب | V5: الفئة | W5: النتيجة | Z5: ترتيب تصاعدي | AC5: السعي الثاني | AD5: آخر السنة | AE5: الفصل الثاني | AF5: الترتيب | AI5: ترتيب تصاعدي
B6: العلامة القصوى | C6: 20 | D6: 20 | E6: 20 | F6: 20 | G6: 10 | H6: 10 | I6: 20 | J6: 20 | K6: 20 | L6: 20 | M6: 20 | N6: 20 | O6: 10 | P6: 10 | Q6: 10 | R6: 10 | S6: =IF(C6<>0,SUM(C6:R6),"") -> 260 | T6: 20 | AC6: =Monthly2!S6 -> 260 | AD6: =S6 -> 260 | AE6: =IF((AC6<>"")*AND(AD6<>""),AVERAGE(AC6,AD6),"") -> 260
A7: =IF(B7<>0,[1]STName!A7,"") -> 1 | B7: =[1]STName!B7 -> اسم الطالب 1 | C7: 6 | D7: 12 | E7: 11 | F7: 12 | G7: 5 | H7: 5 | I7: 9 | J7: 8 | K7: 9 | L7: 12 | M7: 10 | N7: 6 | O7: 6 | P7: 5 | Q7: 7 | R7: 7 | S7: =IF(C7<>0,SUM(C7:R7),"") -> 130 | T7: =IF(C7<>0,S7/13,"") -> 10 | U7: =IF(C7<>0,RANK(T7,$T$7:$T$36),"") -> 16 | V7: =IF(C7<>0,IF(T7>=15,"A",IF(T7>=12,"B",IF(T7>=10,"C",IF(T7>=7.5,"D","E")))),"") -> C | W7: =IF(C7<>0,IF(T7>=10,"ناجح","راسب"),"") -> ناجح | Y7: 1 | Z7: =IF(B7=0,"",TOPTEN($S$7:$S$36,$B$7:$B$36,1,FALSE)) -> اسم الطالب 12 | AA7: =IF(C7=0,"",TOPTEN($S$7:$S$36,$B$7:$B$36,1,TRUE)) -> الأول | AC7: =Monthly2!S7 -> 210 | AD7: 130 | AE7: =IF((AC7<>"")*AND(AD7<>""),AVERAGE(AC7,AD7),"") -> 170 | AF7: =IF(B7<>0,RANK(AE7,$AE$7:$AE$36),"") -> 14 | AH7: 1 | AI7: =IF(B7=0,"",TOPTEN($AE$7:$AE$36,$B$7:$B$36,1,FALSE)) -> اسم الطالب 10 | AJ7: =IF(B7=0,"",TOPTEN($AE$7:$AE$36,$B$7:$B$36,1,TRUE)) -> الأول
A8: =IF(B8<>0,[1]STName!A8,"") -> 2 | B8: =[1]STName!B8 -> اسم الطالب 2 | C8: 12 | D8: 20 | E8: 16 | F8: 14 | G8: 5 | H8: 6 | I8: 19 | J8: 20 | K8: 13 | L8: 17 | M8: 19 | N8: 15 | O8: 7 | P8: 5 | Q8: 7 | R8: 7 | S8: 202 | T8: 15.53846154 | U8: =IF(C8<>0,RANK(T8,$T$7:$T$36),"") -> 6 | V8: =IF(C8<>0,IF(T8>=15,"A",IF(T8>=12,"B",IF(T8>=10,"C",IF(T8>=7.5,"D","E")))),"") -> A | W8: =IF(C8<>0,IF(T8>=10,"ناجح","راسب"),"") -> ناجح | Y8: 2 | Z8: =IF(B8=0,"",TOPTEN($S$7:$S$36,$B$7:$B$36,2,FALSE)) -> اسم الطالب 5 | AA8: =IF(C8=0,"",TOPTEN($S$7:$S$36,$B$7:$B$36,2,TRUE)) -> الثاني | AC8: =Monthly2!S8 -> 176 | AD8: 202 | AE8: 189 | AF8: =IF(B8<>0,RANK(AE8,$AE$7:$AE$36),"") -> 9 | AH8: 2 | AI8: =IF(B8=0,"",TOPTEN($AE$7:$AE$36,$B$7:$B$36,2,FALSE)) -> اسم الطالب 5 | AJ8: =IF(B8=0,"",TOPTEN($AE$7:$AE$36,$B$7:$B$36,2,TRUE)) -> الثاني
A9: =IF(B9<>0,[1]STName!A9,"") -> 3 | B9: =[1]STName!B9 -> اسم الطالب 3 | C9: 9 | D9: 14 | E9: 11 | F9: 12 | G9: 6 | H9: 6 | I9: 11 | J9: 9 | K9: 10 | L9: 19 | M9: 18 | N9: 14 | O9: 7 | P9: 6 | Q9: 7 | R9: 7 | S9: 166 | T9: 12.76923077 | U9: 14 | V9: B | W9: ناجح | Y9: 3 | Z9: =IF(B9=0,"",TOPTEN($S$7:$S$36,$B$7:$B$36,3,FALSE)) -> اسم الطالب 19 | AA9: =IF(C9=0,"",TOPTEN($S$7:$S$36,$B$7:$B$36,3,TRUE)) -> الثاني مكرر | AC9: =Monthly2!S9 -> 195 | AD9: 166 | AE9: 180.5 | AF9: 12 | AH9: 3 | AI9: =IF(B9=0,"",TOPTEN($AE$7:$AE$36,$B$7:$B$36,3,FALSE)) -> اسم الطالب 19 | AJ9: =IF(B9=0,"",TOPTEN($AE$7:$AE$36,$B$7:$B$36,3,TRUE)) -> الثاني مكرر
A10: =IF(B10<>0,[1]STName!A10,"") -> 4 | B10: =[1]STName!B10 -> اسم الطالب 4 | C10: 13 | D10: 20 | E10: 19 | F10: 14 | G10: 7 | H10: 7 | I10: 19 | J10: 17 | K10: 12 | L10: 19 | M10: 20 | N10: 14 | O10: 7 | P10: 6 | Q10: 7 | R10: 7 | S10: 208 | T10: 16 | U10: 5 | V10: A | W10: ناجح | Y10: 4 | Z10: =IF(B10=0,"",TOPTEN($S$7:$S$36,$B$7:$B$36,4,FALSE)) -> اسم الطالب 10 | AA10: =IF(C10=0,"",TOPTEN($S$7:$S$36,$B$7:$B$36,4,TRUE)) -> الرابع | AC10: =Monthly2!S10 -> 166 | AD10: 208 | AE10: 187 | AF10: 10 | AH10: 4 | AI10: =IF(B10=0,"",TOPTEN($AE$7:$AE$36,$B$7:$B$36,4,FALSE)) -> اسم الطالب 12 | AJ10: =IF(B10=0,"",TOPTEN($AE$7:$AE$36,$B$7:$B$36,4,TRUE)) -> الرابع
A11: =IF(B11<>0,[1]STName!A11,"") -> 5 | B11: =[1]STName!B11 -> اسم الطالب 5 | C11: 14 | D11: 20 | E11: 20 | F11: 14 | G11: 7 | H11: 7 | I11: 20 | J11: 20 | K11: 13 | L11: 20 | M11: 20 | N11: 15 | O11: 7 | P11: 7 | Q11: 5 | R11: 7 | S11: 216 | T11: 16.61538462 | U11: 2 | V11: A | W11: ناجح | Y11: 5 | Z11: =IF(B11=0,"",TOPTEN($S$7:$S$36,$B$7:$B$36,5,FALSE)) -> اسم الطالب 4 | AA11: =IF(C11=0,"",TOPTEN($S$7:$S$36,$B$7:$B$36,5,TRUE)) -> الخامس | AC11: =Monthly2!S11 -> 208 | AD11: 216 | AE11: 212 | AF11: 2 | AH11: 5 | AI11: =IF(B11=0,"",TOPTEN($AE$7:$AE$36,$B$7:$B$36,5,FALSE)) -> اسم الطالب 6 | AJ11: =IF(B11=0,"",TOPTEN($AE$7:$AE$36,$B$7:$B$36,5,TRUE)) -> الخامس
A12: =IF(B12<>0,[1]STName!A12,"") -> 6 | B12: =[1]STName!B12 -> اسم الطالب 6 | C12: 13 | D12: 13 | E12: 18 | F12: 14 | G12: 7 | H12: 6 | I12: 17 | J12: 14 | K12: 12 | L12: 19 | M12: 20 | N12: 15 | O12: 7 | P12: 6 | Q12: 8 | R12: 7 | S12: 196 | T12: 15.07692308 | U12: 7 | V12: A | W12: ناجح | Y12: 6 | Z12: =IF(B12=0,"",TOPTEN($S$7:$S$36,$B$7:$B$36,6,FALSE)) -> اسم الطالب 2 | AA12: =IF(C12=0,"",TOPTEN($S$7:$S$36,$B$7:$B$36,6,TRUE)) -> السادس | AC12: =Monthly2!S12 -> 220 | AD12: 196 | AE12: 208 | AF12: 5 | AH12: 6 | AI12: =IF(B12=0,"",TOPTEN($AE$7:$AE$36,$B$7:$B$36,6,FALSE)) -> اسم الطالب 14 | AJ12: =IF(B12=0,"",TOPTEN($AE$7:$AE$36,$B$7:$B$36,6,TRUE)) -> السادس
A13: =IF(B13<>0,[1]STName!A13,"") -> 7 | B13: =[1]STName!B13 -> اسم الطالب 7 | C13: 13 | D13: 13 | E13: 18 | F13: 14 | G13: 7 | H13: 6 | I13: 17 | J13: 14 | K13: 12 | L13: 19 | M13: 20 | N13: 15 | O13: 7 | P13: 6 | Q13: 6 | R13: 7 | S13: 194 | T13: 14.92307692 | U13: 10 | V13: B | W13: ناجح | Y13: 7 | Z13: =IF(B13="","",TOPTEN($S$7:$S$36,$B$7:$B$36,7,FALSE)) -> اسم الطالب 6 | AA13: =IF(C13="","",TOPTEN($S$7:$S$36,$B$7:$B$36,7,TRUE)) -> السابع | AC13: =Monthly2!S13 -> 195 | AD13: 194 | AE13: 194.5 | AF13: 8 | AH13: 7 | AI13: =IF(B13=0,"",TOPTEN($AE$7:$AE$36,$B$7:$B$36,7,FALSE)) -> اسم الطالب 15 | AJ13: =IF(B13=0,"",TOPTEN($AE$7:$AE$36,$B$7:$B$36,7,TRUE)) -> السابع
A14: =IF(B14<>0,[1]STName!A14,"") -> 8 | B14: =[1]STName!B14 -> اسم الطالب 8 | C14: 8 | D14: 16 | E14: 13 | F14: 13 | G14: 2 | H14: 7 | I14: 14 | J14: 20 | K14: 12 | L14: 19 | M14: 19 | N14: 2 | O14: 7 | P14: 6 | Q14: 7 | R14: 7 | S14: 172 | T14: 13.23076923 | U14: 11 | V14: B | W14: ناجح | Y14: 8 | Z14: =IF(B14="",0,TOPTEN($S$7:$S$36,$B$7:$B$36,8,FALSE)) -> اسم الطالب 13 | AA14: =IF(C14="",0,TOPTEN($S$7:$S$36,$B$7:$B$36,8,TRUE)) -> الثامن | AC14: =Monthly2!S14 -> 166 | AD14: 172 | AE14: 169 | AF14: 15 | AH14: 8 | AI14: =IF(B14=0,"",TOPTEN($AE$7:$AE$36,$B$7:$B$36,8,FALSE)) -> اسم الطالب 7 | AJ14: =IF(B14=0,"",TOPTEN($AE$7:$AE$36,$B$7:$B$36,8,TRUE)) -> الثامن
A15: =IF(B15<>0,[1]STName!A15,"") -> 9 | B15: =[1]STName!B15 -> اسم الطالب 9 | C15: 12 | D15: 19 | E15: 19 | F15: 15 | G15: 7 | H15: 7 | I15: 2 | J15: 2 | K15: 2 | L15: 5 | M15: 2 | N15: 1 | O15: 7 | P15: 7 | Q15: 8 | R15: 7 | S15: 122 | T15: 9.384615385 | U15: 18 | V15: D | W15: راسب | Y15: 9 | Z15: =IF(B15=0,"",TOPTEN($S$7:$S$36,$B$7:$B$36,9,FALSE)) -> اسم الطالب 14 | AA15: =IF(C15=0,"",TOPTEN($S$7:$S$36,$B$7:$B$36,9,TRUE)) -> الثامن مكرر | AC15: =Monthly2!S15 -> 210 | AD15: 122 | AE15: 166 | AF15: 16 | AH15: 9 | AI15: =IF(B15=0,"",TOPTEN($AE$7:$AE$36,$B$7:$B$36,9,FALSE)) -> اسم الطالب 2 | AJ15: =IF(B15=0,"",TOPTEN($AE$7:$AE$36,$B$7:$B$36,9,TRUE)) -> التاسع
A16: =IF(B16<>0,[1]STName!A16,"") -> 10 | B16: =[1]STName!B16 -> اسم الطالب 10 | C16: 14 | D16: 20 | E16: 19 | F16: 15 | G16: 7 | H16: 7 | I16: 20 | J16: 20 | K16: 12 | L16: 20 | M16: 20 | N16: 15 | O16: 7 | P16: 6 | Q16: 6 | R16: 7 | S16: 215 | T16: 16.53846154 | U16: 4 | V16: A | W16: ناجح | Y16: 10 | Z16: =IF(B16=0,"",TOPTEN($S$7:$S$36,$B$7:$B$36,10,FALSE)) -> اسم الطالب 7 | AA16: =IF(C16=0,"",TOPTEN($S$7:$S$36,$B$7:$B$36,10,TRUE)) -> العاشر | AC16: =Monthly2!S16 -> 219 | AD16: 215 | AE16: 217 | AF16: 1 | AH16: 10 | AI16: =IF(B16=0,"",TOPTEN($AE$7:$AE$36,$B$7:$B$36,10,FALSE)) -> اسم الطالب 4 | AJ16: =IF(B16=0,"",TOPTEN($AE$7:$AE$36,$B$7:$B$36,10,TRUE)) -> العاشر
A17: =IF(B17<>0,[1]STName!A17,"") -> 11 | B17: =[1]STName!B17 -> اسم الطالب 11 | C17: 6 | D17: 12 | E17: 11 | F17: 12 | G17: 5 | H17: 5 | I17: 9 | J17: 8 | K17: 9 | L17: 12 | M17: 10 | N17: 6 | O17: 6 | P17: 5 | Q17: 8 | R17: 7 | S17: 131 | T17: 10.07692308 | U17: 15 | V17: C | W17: ناجح | Y17: 11 | Z17: =IF(B17=0,"",TOPTEN($S$7:$S$36,$B$7:$B$36,11,FALSE)) -> اسم الطالب 8 | AA17: =IF(C17=0,"",TOPTEN($S$7:$S$36,$B$7:$B$36,11,TRUE)) -> الحادى عشر | AC17: =Monthly2!S17 -> 130 | AD17: 131 | AE17: 130.5 | AF17: 19 | AH17: 11 | AI17: =IF(B17=0,"",TOPTEN($AE$7:$AE$36,$B$7:$B$36,11,FALSE)) -> اسم الطالب 17 | AJ17: =IF(B17=0,"",TOPTEN($AE$7:$AE$36,$B$7:$B$36,11,TRUE)) -> العاشر مكرر
A18: =IF(B18<>0,[1]STName!A18,"") -> 12 | B18: =[1]STName!B18 -> اسم الطالب 12 | C18: 14 | D18: 20 | E18: 20 | F18: 14 | G18: 7 | H18: 7 | I18: 20 | J18: 20 | K18: 13 | L18: 20 | M18: 20 | N18: 15 | O18: 7 | P18: 7 | Q18: 7 | R18: 7 | S18: 218 | T18: 16.76923077 | U18: 1 | V18: A | W18: ناجح | Y18: 12 | Z18: =IF(B18=0,"",TOPTEN($S$7:$S$36,$B$7:$B$36,12,FALSE)) -> اسم الطالب 15 | AA18: =IF(C18=0,"",TOPTEN($S$7:$S$36,$B$7:$B$36,12,TRUE)) -> الحادى عشر مكرر | AC18: =Monthly2!S18 -> 202 | AD18: 218 | AE18: 210 | AF18: 4 | AH18: 12 | AI18: =IF(B18=0,"",TOPTEN($AE$7:$AE$36,$B$7:$B$36,12,FALSE)) -> اسم الطالب 3 | AJ18: =IF(B18=0,"",TOPTEN($AE$7:$AE$36,$B$7:$B$36,12,TRUE)) -> الثانى عشر
A19: =IF(B19<>0,[1]STName!A19,"") -> 13 | B19: =[1]STName!B19 -> اسم الطالب 13 | C19: 13 | D19: 13 | E19: 18 | F19: 14 | G19: 7 | H19: 6 | I19: 17 | J19: 14 | K19: 12 | L19: 19 | M19: 20 | N19: 15 | O19: 7 | P19: 6 | Q19: 7 | R19: 7 | S19: 195 | T19: 15 | U19: 8 | V19: A | W19: ناجح | Y19: 13 | Z19: =IF(B19=0,"",TOPTEN($S$7:$S$36,$B$7:$B$36,13,FALSE)) -> اسم الطالب 17 | AA19: =IF(C19=0,"",TOPTEN($S$7:$S$36,$B$7:$B$36,13,TRUE)) -> الحادى عشر مكرر | AC19: =Monthly2!S19 -> 166 | AD19: 195 | AE19: 180.5 | AF19: 12 | AH19: 13 | AI19: =IF(B19=0,"",TOPTEN($AE$7:$AE$36,$B$7:$B$36,13,FALSE)) -> اسم الطالب 13 | AJ19: =IF(B19=0,"",TOPTEN($AE$7:$AE$36,$B$7:$B$36,13,TRUE)) -> الثانى عشر مكرر
A20: =IF(B20<>0,[1]STName!A20,"") -> 14 | B20: =[1]STName!B20 -> اسم الطالب 14 | C20: 13 | D20: 13 | E20: 18 | F20: 14 | G20: 7 | H20: 6 | I20: 17 | J20: 14 | K20: 12 | L20: 19 | M20: 20 | N20: 15 | O20: 7 | P20: 6 | Q20: 7 | R20: 7 | S20: 195 | T20: 15 | U20: 8 | V20: A | W20: ناجح | Y20: 14 | Z20: =IF(B20=0,"",TOPTEN($S$7:$S$36,$B$7:$B$36,14,FALSE)) -> اسم الطالب 3 | AA20: =IF(C20=0,"",TOPTEN($S$7:$S$36,$B$7:$B$36,14,TRUE)) -> الرايع عشر | AC20: =Monthly2!S20 -> 208 | AD20: 195 | AE20: 201.5 | AF20: 6 | AH20: 14 | AI20: =IF(B20=0,"",TOPTEN($AE$7:$AE$36,$B$7:$B$36,14,FALSE)) -> اسم الطالب 1 | AJ20: =IF(B20=0,"",TOPTEN($AE$7:$AE$36,$B$7:$B$36,14,TRUE)) -> الرايع عشر
A21: =IF(B21<>0,[1]STName!A21,"") -> 15 | B21: =[1]STName!B21 -> اسم الطالب 15 | C21: 8 | D21: 16 | E21: 13 | F21: 13 | G21: 2 | H21: 7 | I21: 14 | J21: 20 | K21: 12 | L21: 19 | M21: 19 | N21: 2 | O21: 7 | P21: 6 | Q21: 7 | R21: 7 | S21: 172 | T21: 13.23076923 | U21: 11 | V21: B | W21: ناجح | Y21: 15 | Z21: =IF(B21=0,"",TOPTEN($S$7:$S$36,$B$7:$B$36,15,FALSE)) -> اسم الطالب 11 | AA21: =IF(C21=0,"",TOPTEN($S$7:$S$36,$B$7:$B$36,15,TRUE)) -> الخامس عشر | AC21: =Monthly2!S21 -> 218 | AD21: 172 | AE21: 195 | AF21: 7 | AH21: 15 | AI21: =IF(B21=0,"",TOPTEN($AE$7:$AE$36,$B$7:$B$36,15,FALSE)) -> اسم الطالب 8 | AJ21: =IF(B21=0,"",TOPTEN($AE$7:$AE$36,$B$7:$B$36,15,TRUE)) -> الخامس عشر
A22: =IF(B22<>0,[1]STName!A22,"") -> 16 | B22: =[1]STName!B22 -> اسم الطالب 16 | C22: 12 | D22: 19 | E22: 19 | F22: 15 | G22: 7 | H22: 7 | I22: 2 | J22: 2 | K22: 2 | L22: 5 | M22: 2 | N22: 1 | O22: 7 | P22: 7 | Q22: 7 | R22: 7 | S22: 121 | T22: 9.307692308 | U22: 19 | V22: D | W22: راسب | Y22: 16 | Z22: =IF(B22=0,"",TOPTEN($S$7:$S$36,$B$7:$B$36,16,FALSE)) -> اسم الطالب 1 | AA22: =IF(C22=0,"",TOPTEN($S$7:$S$36,$B$7:$B$36,16,TRUE)) -> السادس عشر | AC22: =Monthly2!S22 -> 130 | AD22: 121 | AE22: 125.5 | AF22: 20 | AH22: 16 | AI22: =IF(B22=0,"",TOPTEN($AE$7:$AE$36,$B$7:$B$36,16,FALSE)) -> اسم الطالب 9 | AJ22: =IF(B22=0,"",TOPTEN($AE$7:$AE$36,$B$7:$B$36,16,TRUE)) -> السادس عشر
A23: =IF(B23<>0,[1]STName!A23,"") -> 17 | B23: =[1]STName!B23 -> اسم الطالب 17 | C23: 8 | D23: 16 | E23: 13 | F23: 13 | G23: 2 | H23: 7 | I23: 14 | J23: 20 | K23: 12 | L23: 19 | M23: 19 | N23: 2 | O23: 7 | P23: 6 | Q23: 7 | R23: 7 | S23: 172 | T23: 13.23076923 | U23: 11 | V23: B | W23: ناجح | Y23: 17 | Z23: =IF(B23=0,"",TOPTEN($S$7:$S$36,$B$7:$B$36,17,FALSE)) -> اسم الطالب 20 | AA23: =IF(C23=0,"",TOPTEN($S$7:$S$36,$B$7:$B$36,17,TRUE)) -> السادس عشر مكرر | AC23: =Monthly2!S23 -> 202 | AD23: 172 | AE23: 187 | AF23: 10 | AH23: 17 | AI23: =IF(B23=0,"",TOPTEN($AE$7:$AE$36,$B$7:$B$36,17,FALSE)) -> اسم الطالب 18 | AJ23: =IF(B23=0,"",TOPTEN($AE$7:$AE$36,$B$7:$B$36,17,TRUE)) -> السابع عشر
A24: =IF(B24<>0,[1]STName!A24,"") -> 18 | B24: =[1]STName!B24 -> اسم الطالب 18 | C24: 12 | D24: 19 | E24: 19 | F24: 15 | G24: 5 | H24: 7 | I24: 2 | J24: 2 | K24: 2 | L24: 5 | M24: 2 | N24: 1 | O24: 7 | P24: 7 | Q24: 7 | R24: 7 | S24: 119 | T24: 9.153846154 | U24: 20 | V24: D | W24: راسب | Y24: 18 | Z24: =IF(B24=0,"",TOPTEN($S$7:$S$36,$B$7:$B$36,18,FALSE)) -> اسم الطالب 9 | AA24: =IF(C24=0,"",TOPTEN($S$7:$S$36,$B$7:$B$36,18,TRUE)) -> الثامن عشر | AC24: =Monthly2!S24 -> 166 | AD24: 119 | AE24: 142.5 | AF24: 17 | AH24: 18 | AI24: =IF(B24=0,"",TOPTEN($AE$7:$AE$36,$B$7:$B$36,18,FALSE)) -> اسم الطالب 20 | AJ24: =IF(B24=0,"",TOPTEN($AE$7:$AE$36,$B$7:$B$36,18,TRUE)) -> الثامن عشر
A25: =IF(B25<>0,[1]STName!A25,"") -> 19 | B25: =[1]STName!B25 -> اسم الطالب 19 | C25: 14 | D25: 20 | E25: 19 | F25: 15 | G25: 7 | H25: 7 | I25: 20 | J25: 20 | K25: 12 | L25: 20 | M25: 20 | N25: 15 | O25: 7 | P25: 6 | Q25: 7 | R25: 7 | S25: 216 | T25: 16.61538462 | U25: 2 | V25: A | W25: ناجح | Y25: 19 | Z25: =IF(B25=0,"",TOPTEN($S$7:$S$36,$B$7:$B$36,19,FALSE)) -> اسم الطالب 16 | AA25: =IF(C25=0,"",TOPTEN($S$7:$S$36,$B$7:$B$36,19,TRUE)) -> التاسع عشر | AC25: =Monthly2!S25 -> 208 | AD25: 216 | AE25: 212 | AF25: 2 | AH25: 19 | AI25: =IF(B25=0,"",TOPTEN($AE$7:$AE$36,$B$7:$B$36,19,FALSE)) -> اسم الطالب 11 | AJ25: =IF(B25=0,"",TOPTEN($AE$7:$AE$36,$B$7:$B$36,19,TRUE)) -> التاسع عشر
A26: =IF(B26<>0,[1]STName!A26,"") -> 20 | B26: =[1]STName!B26 -> اسم الطالب 20 | C26: 6 | D26: 12 | E26: 11 | F26: 12 | G26: 5 | H26: 5 | I26: 9 | J26: 8 | K26: 9 | L26: 12 | M26: 10 | N26: 6 | O26: 6 | P26: 5 | Q26: 7 | R26: 7 | S26: 130 | T26: 10 | U26: 16 | V26: C | W26: ناجح | Y26: 20 | Z26: =IF(B26=0,"",TOPTEN($S$7:$S$36,$B$7:$B$36,20,FALSE)) -> اسم الطالب 18 | AA26: =IF(C26=0,"",TOPTEN($S$7:$S$36,$B$7:$B$36,20,TRUE)) -> العشرون | AC26: =Monthly2!S26 -> 136 | AD26: 130 | AE26: 133 | AF26: 18 | AH26: 20 | AI26: =IF(B26=0,"",TOPTEN($AE$7:$AE$36,$B$7:$B$36,20,FALSE)) -> اسم الطالب 16 | AJ26: =IF(B26=0,"",TOPTEN($AE$7:$AE$36,$B$7:$B$36,20,TRUE)) -> العشرون
A27: =IF(B27<>0,[1]STName!A27,"") ->  | B27: =[1]STName!B27 -> 0 | Y27: 21 | Z27: =IF(B27=0,"",TOPTEN($S$7:$S$36,$B$7:$B$36,21,FALSE)) ->  | AA27: =IF(C27=0,"",TOPTEN($S$7:$S$36,$B$7:$B$36,21,TRUE)) ->  | AC27: =Monthly2!S27 ->  | AH27: 21 | AI27: =IF(B27=0,"",TOPTEN($AE$7:$AE$36,$B$7:$B$36,21,FALSE)) ->  | AJ27: =IF(B27=0,"",TOPTEN($AE$7:$AE$36,$B$7:$B$36,21,TRUE)) -> 
A28: =IF(B28<>0,[1]STName!A28,"") ->  | B28: =[1]STName!B28 -> 0 | Y28: 22 | Z28: =IF(B28=0,"",TOPTEN($S$7:$S$36,$B$7:$B$36,22,FALSE)) ->  | AA28: =IF(C28=0,"",TOPTEN($S$7:$S$36,$B$7:$B$36,22,TRUE)) ->  | AC28: =Monthly2!S28 ->  | AH28: 22 | AI28: =IF(B28=0,"",TOPTEN($AE$7:$AE$36,$B$7:$B$36,22,FALSE)) ->  | AJ28: =IF(B28=0,"",TOPTEN($AE$7:$AE$36,$B$7:$B$36,22,TRUE)) -> 
A29: =IF(B29<>0,[1]STName!A29,"") ->  | B29: =[1]STName!B29 -> 0 | Y29: 23 | Z29: =IF(B29=0,"",TOPTEN($S$7:$S$36,$B$7:$B$36,23,FALSE)) ->  | AA29: =IF(C29=0,"",TOPTEN($S$7:$S$36,$B$7:$B$36,23,TRUE)) ->  | AC29: =Monthly2!S29 ->  | AH29: 23 | AI29: =IF(B29=0,"",TOPTEN($AE$7:$AE$36,$B$7:$B$36,23,FALSE)) ->  | AJ29: =IF(B29=0,"",TOPTEN($AE$7:$AE$36,$B$7:$B$36,23,TRUE)) -> 
A30: =IF(B30<>0,[1]STName!A30,"") ->  | B30: =[1]STName!B30 -> 0 | Y30: 24 | Z30: =IF(B30=0,"",TOPTEN($S$7:$S$36,$B$7:$B$36,24,FALSE)) ->  | AA30: =IF(C30=0,"",TOPTEN($S$7:$S$36,$B$7:$B$36,24,TRUE)) ->  | AC30: =Monthly2!S30 ->  | AH30: 24 | AI30: =IF(B30=0,"",TOPTEN($AE$7:$AE$36,$B$7:$B$36,24,FALSE)) ->  | AJ30: =IF(B30=0,"",TOPTEN($AE$7:$AE$36,$B$7:$B$36,24,TRUE)) -> 
A31: =IF(B31<>0,[1]STName!A31,"") ->  | B31: =[1]STName!B31 -> 0 | Y31: 25 | Z31: =IF(B31=0,"",TOPTEN($S$7:$S$36,$B$7:$B$36,25,FALSE)) ->  | AA31: =IF(C31=0,"",TOPTEN($S$7:$S$36,$B$7:$B$36,25,TRUE)) ->  | AC31: =Monthly2!S31 ->  | AH31: 25 | AI31: =IF(B31=0,"",TOPTEN($AE$7:$AE$36,$B$7:$B$36,25,FALSE)) ->  | AJ31: =IF(B31=0,"",TOPTEN($AE$7:$AE$36,$B$7:$B$36,25,TRUE)) -> 
A32: =IF(B32<>0,[1]STName!A32,"") ->  | B32: =[1]STName!B32 -> 0 | Y32: 26 | Z32: =IF(B32=0,"",TOPTEN($S$7:$S$36,$B$7:$B$36,26,FALSE)) ->  | AA32: =IF(C32=0,"",TOPTEN($S$7:$S$36,$B$7:$B$36,26,TRUE)) ->  | AC32: =Monthly2!S32 ->  | AH32: 26 | AI32: =IF(B32=0,"",TOPTEN($AE$7:$AE$36,$B$7:$B$36,26,FALSE)) ->  | AJ32: =IF(B32=0,"",TOPTEN($AE$7:$AE$36,$B$7:$B$36,26,TRUE)) -> 
A33: =IF(B33<>0,[1]STName!A33,"") ->  | B33: =[1]STName!B33 -> 0 | Y33: 27 | Z33: =IF(B33=0,"",TOPTEN($S$7:$S$36,$B$7:$B$36,27,FALSE)) ->  | AA33: =IF(C33=0,"",TOPTEN($S$7:$S$36,$B$7:$B$36,27,TRUE)) ->  | AC33: =Monthly2!S33 ->  | AH33: 27 | AI33: =IF(B33=0,"",TOPTEN($AE$7:$AE$36,$B$7:$B$36,27,FALSE)) ->  | AJ33: =IF(B33=0,"",TOPTEN($AE$7:$AE$36,$B$7:$B$36,27,TRUE)) -> 
A34: =IF(B34<>0,[1]STName!A34,"") ->  | B34: =[1]STName!B34 -> 0 | Y34: 28 | Z34: =IF(B34=0,"",TOPTEN($S$7:$S$36,$B$7:$B$36,28,FALSE)) ->  | AA34: =IF(C34=0,"",TOPTEN($S$7:$S$36,$B$7:$B$36,28,TRUE)) ->  | AC34: =Monthly2!S34 ->  | AH34: 28 | AI34: =IF(B34=0,"",TOPTEN($AE$7:$AE$36,$B$7:$B$36,28,FALSE)) ->  | AJ34: =IF(B34=0,"",TOPTEN($AE$7:$AE$36,$B$7:$B$36,28,TRUE)) -> 
A35: =IF(B35<>0,[1]STName!A35,"") ->  | B35: =[1]STName!B35 -> 0 | Y35: 29 | Z35: =IF(B35=0,"",TOPTEN($S$7:$S$36,$B$7:$B$36,29,FALSE)) ->  | AA35: =IF(C35=0,"",TOPTEN($S$7:$S$36,$B$7:$B$36,29,TRUE)) ->  | AC35: =Monthly2!S35 ->  | AH35: 29 | AI35: =IF(B35=0,"",TOPTEN($AE$7:$AE$36,$B$7:$B$36,29,FALSE)) ->  | AJ35: =IF(B35=0,"",TOPTEN($AE$7:$AE$36,$B$7:$B$36,29,TRUE)) -> 
A36: =IF(B36<>0,[1]STName!A36,"") ->  | B36: =[1]STName!B36 -> 0 | Y36: 30 | Z36: =IF(B36=0,"",TOPTEN($S$7:$S$36,$B$7:$B$36,30,FALSE)) ->  | AA36: =IF(C36=0,"",TOPTEN($S$7:$S$36,$B$7:$B$36,30,TRUE)) ->  | AC36: =Monthly2!S36 ->  | AH36: 30 | AI36: =IF(B36=0,"",TOPTEN($AE$7:$AE$36,$B$7:$B$36,30,FALSE)) ->  | AJ36: =IF(B36=0,"",TOPTEN($AE$7:$AE$36,$B$7:$B$36,30,TRUE)) -> 
B38: أعلى علامة | C38: =MAX(C7:C36) -> 14 | D38: =MAX(D7:D36) -> 20 | E38: 20 | F38: 15 | G38: 7 | H38: 7 | I38: 20 | J38: 20 | K38: 13 | L38: 20 | M38: 20 | N38: 15 | O38: 7 | P38: 7 | Q38: 8 | R38: 7 | S38: 218 | T38: 16.76923077
B39: أدنى علامة | C39: =MIN(C7:C36) -> 6 | D39: =MIN(D7:D36) -> 12 | E39: 11 | F39: 12 | G39: 2 | H39: 5 | I39: 2 | J39: 2 | K39: 2 | L39: 5 | M39: 2 | N39: 1 | O39: 6 | P39: 5 | Q39: 5 | R39: 7 | S39: 119 | T39: 9.153846154
B40: عدد الناجحين | C40: =COUNTIF(C7:C36,">="&C6/2) -> 13 | D40: 20 | E40: 20 | F40: 20 | G40: 17 | H40: 20 | I40: 14 | J40: 13 | K40: 14 | L40: 17 | M40: 17 | N40: 11 | O40: 20 | P40: 20 | Q40: 20 | R40: 20 | S40: =COUNTIF(S7:S36,">="&S6/2) -> 17 | T40: =COUNTIF(T7:T36,">=10") -> 17
B41: عدد الراسبين | C41: =COUNTIF(C7:C37,"<"&C6/2) -> 7 | D41: 0 | E41: 0 | F41: 0 | G41: 3 | H41: 0 | I41: 6 | J41: 7 | K41: 6 | L41: 3 | M41: 3 | N41: 9 | O41: 0 | P41: 0 | Q41: 0 | R41: 0 | S41: =COUNTIF(S7:S37,"<"&S6/2) -> 3 | T41: =COUNTIF(T7:T37,"<10") -> 3

Sheet الشهادة
F1: بحث برقم الطالب | H1: إجمالي الشهادات
F2: 19 | H2: =COUNTIF(Monthly1!A7:A36,">0") -> 20
A4: =STName!A1 -> اسم المدرسة
A5: =STName!A2 -> Academic Year: 2024-2025
A6: Class | B6: =STName!N3 -> Grade 01
A7: Section | B7: =STName!J3&" "&STName!H3 -> A Moon
A8: Student Number | B8: =LOOKUP(F2,Monthly1!A7:A36,Monthly1!A7:A36) -> 19 | C8: from | D8: =H2 -> 20
A9: Student Name | B9: =LOOKUP(B8,Monthly1!A7:A36,Monthly1!B7:B36) -> اسم الطالب 19
G11: الشويفات/ هاتف: 05/000000
A12: Subject | B12: Max Mark | C12: Monthly1 | D12: Mid Year Exam | E12: Semester One Average | F12: Monthly2 | G12: Final Exam | H12: Semester Two Average | I12: Total Average
A13: Reading | B13: 20 | C13: =IF($B$8="","",IFERROR(1/(1/INDEX(Monthly1,$B$8,3)),"")) -> 14 | D13: =IF($B$8="","",IFERROR(1/(1/INDEX(MidYear,$B$8,3)),"")) -> 14 | E13: =IF((C13<>"")*AND(D13<>""),CEILING(AVERAGE(C13,D13),1),"") -> 14 | F13: =IF($B$8="","",IFERROR(1/(1/INDEX(Monthly2,$B$8,3)),"")) -> 13 | G13: =IF($B$8="","",IFERROR(1/(1/INDEX(FinalYear,$B$8,3)),"")) -> 14 | H13: =IF((F13<>"")*AND(G13<>""),CEILING(AVERAGE(F13,G13),1),"") -> 14 | I13: =IF((E13<>"")*AND(H13<>""),CEILING(AVERAGE(E13,H13),1),"") -> 14
A14: Grammar | B14: 20 | C14: =IF($B$8="","",IFERROR(1/(1/INDEX(Monthly1,$B$8,4)),"")) -> 20 | D14: =IF($B$8="","",IFERROR(1/(1/INDEX(MidYear,$B$8,4)),"")) -> 20 | E14: 20 | F14: =IF($B$8="","",IFERROR(1/(1/INDEX(Monthly2,$B$8,4)),"")) -> 20 | G14: =IF($B$8="","",IFERROR(1/(1/INDEX(FinalYear,$B$8,4)),"")) -> 20 | H14: =IF((F14<>"")*AND(G14<>""),CEILING(AVERAGE(F14,G14),1),"") -> 20 | I14: 20
A15: Dictation | B15: 20 | C15: =IF($B$8="","",IFERROR(1/(1/INDEX(Monthly1,$B$8,5)),"")) -> 20 | D15: =IF($B$8="","",IFERROR(1/(1/INDEX(MidYear,$B$8,5)),"")) -> 19 | E15: 20 | F15: =IF($B$8="","",IFERROR(1/(1/INDEX(Monthly2,$B$8,5)),"")) -> 19 | G15: =IF($B$8="","",IFERROR(1/(1/INDEX(FinalYear,$B$8,5)),"")) -> 19 | H15: 19 | I15: 20
A16: Comp + Conv | B16: 20 | C16: =IF($B$8="","",IFERROR(1/(1/INDEX(Monthly1,$B$8,6)),"")) -> 14 | D16: =IF($B$8="","",IFERROR(1/(1/INDEX(MidYear,$B$8,6)),"")) -> 15 | E16: 15 | F16: =IF($B$8="","",IFERROR(1/(1/INDEX(Monthly2,$B$8,6)),"")) -> 14 | G16: =IF($B$8="","",IFERROR(1/(1/INDEX(FinalYear,$B$8,6)),"")) -> 15 | H16: 15 | I16: 15
A17: Poetry | B17: 10 | C17: =IF($B$8="","",IFERROR(1/(1/INDEX(Monthly1,$B$8,7)),"")) -> 7 | D17: =IF($B$8="","",IFERROR(1/(1/INDEX(MidYear,$B$8,7)),"")) -> 7 | E17: 7 | F17: =IF($B$8="","",IFERROR(1/(1/INDEX(Monthly2,$B$8,7)),"")) -> 7 | G17: =IF($B$8="","",IFERROR(1/(1/INDEX(FinalYear,$B$8,7)),"")) -> 7 | H17: 7 | I17: 7
A18: Handwriting | B18: 10 | C18: =IF($B$8="","",IFERROR(1/(1/INDEX(Monthly1,$B$8,8)),"")) -> 7 | D18: =IF($B$8="","",IFERROR(1/(1/INDEX(MidYear,$B$8,8)),"")) -> 7 | E18: 7 | F18: =IF($B$8="","",IFERROR(1/(1/INDEX(Monthly2,$B$8,8)),"")) -> 7 | G18: =IF($B$8="","",IFERROR(1/(1/INDEX(FinalYear,$B$8,8)),"")) -> 7 | H18: 7 | I18: 7
A19: Science | B19: 20 | C19: =IF($B$8="","",IFERROR(1/(1/INDEX(Monthly1,$B$8,9)),"")) -> 20 | D19: =IF($B$8="","",IFERROR(1/(1/INDEX(MidYear,$B$8,9)),"")) -> 20 | E19: 20 | F19: =IF($B$8="","",IFERROR(1/(1/INDEX(Monthly2,$B$8,9)),"")) -> 19 | G19: =IF($B$8="","",IFERROR(1/(1/INDEX(FinalYear,$B$8,9)),"")) -> 20 | H19: 20 | I19: 20
A20: Mathematics | B20: 20 | C20: =IF($B$8="","",IFERROR(1/(1/INDEX(Monthly1,$B$8,10)),"")) -> 20 | D20: =IF($B$8="","",IFERROR(1/(1/INDEX(MidYear,$B$8,10)),"")) -> 20 | E20: 20 | F20: =IF($B$8="","",IFERROR(1/(1/INDEX(Monthly2,$B$8,10)),"")) -> 17 | G20: =IF($B$8="","",IFERROR(1/(1/INDEX(FinalYear,$B$8,10)),"")) -> 20 | H20: 19 | I20: 20
A21: القراءة | B21: 20 | C21: =IF($B$8="","",IFERROR(1/(1/INDEX(Monthly1,$B$8,11)),"")) -> 13 | D21: =IF($B$8="","",IFERROR(1/(1/INDEX(MidYear,$B$8,11)),"")) -> 12 | E21: 13 | F21: =IF($B$8="","",IFERROR(1/(1/INDEX(Monthly2,$B$8,11)),"")) -> 12 | G21: =IF($B$8="","",IFERROR(1/(1/INDEX(FinalYear,$B$8,11)),"")) -> 12 | H21: 12 | I21: 13
A22: القواعد | B22: 20 | C22: =IF($B$8="","",IFERROR(1/(1/INDEX(Monthly1,$B$8,12)),"")) -> 20 | D22: =IF($B$8="","",IFERROR(1/(1/INDEX(MidYear,$B$8,12)),"")) -> 20 | E22: 20 | F22: =IF($B$8="","",IFERROR(1/(1/INDEX(Monthly2,$B$8,12)),"")) -> 19 | G22: =IF($B$8="","",IFERROR(1/(1/INDEX(FinalYear,$B$8,12)),"")) -> 20 | H22: 20 | I22: 20
A23: الإملاء | B23: 20 | C23: =IF($B$8="","",IFERROR(1/(1/INDEX(Monthly1,$B$8,13)),"")) -> 20 | D23: =IF($B$8="","",IFERROR(1/(1/INDEX(MidYear,$B$8,13)),"")) -> 20 | E23: 20 | F23: =IF($B$8="","",IFERROR(1/(1/INDEX(Monthly2,$B$8,13)),"")) -> 20 | G23: =IF($B$8="","",IFERROR(1/(1/INDEX(FinalYear,$B$8,13)),"")) -> 20 | H23: 20 | I23: 20
A24: التعبير والمحادثة | B24: 20 | C24: =IF($B$8="","",IFERROR(1/(1/INDEX(Monthly1,$B$8,14)),"")) -> 15 | D24: =IF($B$8="","",IFERROR(1/(1/INDEX(MidYear,$B$8,14)),"")) -> 15 | E24: 15 | F24: =IF($B$8="","",IFERROR(1/(1/INDEX(Monthly2,$B$8,14)),"")) -> 14 | G24: =IF($B$8="","",IFERROR(1/(1/INDEX(FinalYear,$B$8,14)),"")) -> 15 | H24: 15 | I24: 15
A25: المحفوظات | B25: 10 | C25: =IF($B$8="","",IFERROR(1/(1/INDEX(Monthly1,$B$8,15)),"")) -> 7 | D25: =IF($B$8="","",IFERROR(1/(1/INDEX(MidYear,$B$8,15)),"")) -> 7 | E25: 7 | F25: =IF($B$8="","",IFERROR(1/(1/INDEX(Monthly2,$B$8,15)),"")) -> 7 | G25: =IF($B$8="","",IFERROR(1/(1/INDEX(FinalYear,$B$8,15)),"")) -> 7 | H25: 7 | I25: 7
A26: الخط | B26: 10 | C26: =IF($B$8="","",IFERROR(1/(1/INDEX(Monthly1,$B$8,16)),"")) -> 7 | D26: =IF($B$8="","",IFERROR(1/(1/INDEX(MidYear,$B$8,16)),"")) -> 6 | E26: 7 | F26: =IF($B$8="","",IFERROR(1/(1/INDEX(Monthly2,$B$8,16)),"")) -> 6 | G26: =IF($B$8="","",IFERROR(1/(1/INDEX(FinalYear,$B$8,16)),"")) -> 6 | H26: 6 | I26: 7
A27: تربية مدنية | B27: 10 | C27: =IF($B$8="","",IFERROR(1/(1/INDEX(Monthly1,$B$8,17)),"")) -> 7 | D27: =IF($B$8="","",IFERROR(1/(1/INDEX(MidYear,$B$8,17)),"")) -> 7 | E27: 7 | F27: =IF($B$8="","",IFERROR(1/(1/INDEX(Monthly2,$B$8,17)),"")) -> 7 | G27: =IF($B$8="","",IFERROR(1/(1/INDEX(FinalYear,$B$8,17)),"")) -> 7 | H27: 7 | I27: 7
A28: Sport | B28: 10 | C28: =IF($B$8="","",IFERROR(1/(1/INDEX(Monthly1,$B$8,18)),"")) -> 7 | D28: =IF($B$8="","",IFERROR(1/(1/INDEX(MidYear,$B$8,18)),"")) -> 7 | E28: 7 | F28: =IF($B$8="","",IFERROR(1/(1/INDEX(Monthly2,$B$8,18)),"")) -> 7 | G28: =IF($B$8="","",IFERROR(1/(1/INDEX(FinalYear,$B$8,18)),"")) -> 7 | H28: 7 | I28: 7
A29: Total | B29: =IF(B13<>"",SUM(B13:B28),"") -> 260 | C29: =IF($B$8="","",IFERROR(1/(1/INDEX(Monthly1,$B$8,19)),"")) -> 218 | D29: =IF($B$8="","",IFERROR(1/(1/INDEX(MidYear,$B$8,19)),"")) -> 216 | E29: =IF(E13<>"",SUM(E13:E28),"") -> 219 | F29: =IF($B$8="","",IFERROR(1/(1/INDEX(Monthly2,$B$8,19)),"")) -> 208 | G29: =IF($B$8="","",IFERROR(1/(1/INDEX(FinalYear,$B$8,19)),"")) -> 216 | H29: 215 | I29: 219
A30: Average | B30: =IF(B29<>"",B29/13,"") -> 20 | C30: =IF($B$8="","",IFERROR(1/(1/INDEX(Monthly1,$B$8,20)),"")) -> 16.76923077 | D30: =IF($B$8="","",IFERROR(1/(1/INDEX(MidYear,$B$8,20)),"")) -> 16.61538462 | E30: =IF(E29<>"",E29/13,"") -> 16.84615385 | F30: =IF($B$8="","",IFERROR(1/(1/INDEX(Monthly2,$B$8,20)),"")) -> 16 | G30: =IF($B$8="","",IFERROR(1/(1/INDEX(FinalYear,$B$8,20)),"")) -> 16.61538462 | H30: 16.53846154 | I30: 16.84615385
A31: Rank | C31: =IF($B$8="","",IFERROR(1/(1/INDEX(Monthly1,$B$8,21)),"")) -> 2 | D31: =IF($B$8="","",IFERROR(1/(1/INDEX(MidYear,$B$8,21)),"")) -> 3 | F31: =IF($B$8="","",IFERROR(1/(1/INDEX(Monthly2,$B$8,21)),"")) -> 6 | G31: =IF($B$8="","",IFERROR(1/(1/INDEX(FinalYear,$B$8,21)),"")) -> 2
A32: Evaluation | C32: =IF($B$8="","",IF(INDEX(Monthly1,$B$8,22)=0,"",INDEX(Monthly1,$B$8,22))) -> A | D32: =IF($B$8="","",IF(INDEX(MidYear,$B$8,22)=0,"",INDEX(MidYear,$B$8,22))) -> A | E32: =IF(E13<>"",IF(E30>=15,"A",IF(E30>=12,"B",IF(E30>=10,"C",IF(E30>=7.5,"D","E")))),"") -> A | F32: =IF($B$8="","",IF(INDEX(Monthly2,$B$8,22)=0,"",INDEX(Monthly2,$B$8,22))) -> A | G32: =IF($B$8="","",IF(INDEX(FinalYear,$B$8,22)=0,"",INDEX(FinalYear,$B$8,22))) -> A | H32: A | I32: A
A33: Result | C33: =IF($B$8="","",IF(INDEX(Monthly1,$B$8,22)=0,"",INDEX(Monthly1,$B$8,23))) -> ناجح | D33: =IF($B$8="","",IF(INDEX(MidYear,$B$8,22)=0,"",INDEX(MidYear,$B$8,23))) -> ناجح | E33: =IF(E13<>"",IF(E30>=10,"ناجح","راسب"),"") -> ناجح | F33: =IF($B$8="","",IF(INDEX(Monthly2,$B$8,22)=0,"",INDEX(Monthly2,$B$8,23))) -> ناجح | G33: =IF($B$8="","",IF(INDEX(FinalYear,$B$8,22)=0,"",INDEX(FinalYear,$B$8,23))) -> ناجح | H33: ناجح | I33: ناجح
A35: (A>15 = جيد جداً) (B>12 = جيد) (C>10 = وسط) (D>7.5 = غير مقبول) (D<7.5 = ضعيف جداً)
A36: ختم الإدارة | G36: توقيع الأهل
